Workbook

Sheet Úvod
B4: Cenník NOARK Electric Europe, s.r.o.
B6: Slovenská republika
B8: Platnosť od | D8: 2021-07-01

Sheet Cenník NOARK
A2: Cenník výrobkov NOARK Electric Europe s.r.o. | D2: Platnosť od: | E2: =Valid -> 2021-07-01
A3: Slovenská republika
A4: Objednávacie číslo | B4: Typové označenie | C4: Popis | D4: Rabatová skupina | E4: Brutto cena (EUR) | F4: Rabat | G4: Cena po zľave (EUR) | H4: EAN kód výrobku | I4: Základné balenie (ks) | J4: EAN/GTIN kód základného balenia | K4: Kartónové balenie (ks) | L4: EAN/GTIN kód kartónového balenia | M4: Colný sadzobník | N4: Jednotková hmotnosť (kg)
A6: Inštalačné ističe Ex9BH, 10 kA
A7: 100270 | B7: Ex9BH 1P B1 | C7: Inštalačný istič 10 kA, charakteristika B, 1 A, 1pól | D7: NAA | E7: 5.17 | F7: =NAA -> 0 | G7: =E7*(1-F7) -> 5.17 | H7: 8592765002716 | I7: 12 | J7: 18592765002713 | K7: 144 | L7: 28592765002710 | M7: 8536201090 | N7: 0.12
A8: 100271 | B8: Ex9BH 1P B2 | C8: Inštalačný istič 10 kA, charakteristika B, 2 A, 1pól | D8: NAA | E8: 5.29 | F8: 0 | G8: 5.29 | H8: 8592765002723 | I8: 12 | J8: 18592765002720 | K8: 144 | L8: 28592765002727 | M8: 8536201090 | N8: 0.12
A9: 100272 | B9: Ex9BH 1P B3 | C9: Inštalačný istič 10 kA, charakteristika B, 3 A, 1pól | D9: NAA | E9: 5.1 | F9: 0 | G9: 5.1 | H9: 8592765002730 | I9: 12 | J9: 18592765002737 | K9: 144 | L9: 28592765002734 | M9: 8536201090 | N9: 0.12
A10: 100273 | B10: Ex9BH 1P B4 | C10: Inštalačný istič 10 kA, charakteristika B, 4 A, 1pól | D10: NAA | E10: 5.07 | F10: 0 | G10: 5.07 | H10: 8592765002747 | I10: 12 | J10: 18592765002744 | K10: 144 | L10: 28592765002741 | M10: 8536201090 | N10: 0.12
A11: 100274 | B11: Ex9BH 1P B6 | C11: Inštalačný istič 10 kA, charakteristika B, 6 A, 1pól | D11: NAA | E11: 4.18 | F11: 0 | G11: 4.18 | H11: 8592765002754 | I11: 12 | J11: 18592765002751 | K11: 144 | L11: 28592765002758 | M11: 8536201090 | N11: 0.12
A12: 100275 | B12: Ex9BH 1P B8 | C12: Inštalačný istič 10 kA, charakteristika B, 8 A, 1pól | D12: NAA | E12: 4.33 | F12: 0 | G12: 4.33 | H12: 8592765002761 | I12: 12 | J12: 18592765002768 | K12: 144 | L12: 28592765002765 | M12: 8536201090 | N12: 0.12
A13: 100276 | B13: Ex9BH 1P B10 | C13: Inštalačný istič 10 kA, charakteristika B, 10 A, 1pól | D13: NAA | E13: 3.45 | F13: 0 | G13: 3.45 | H13: 8592765002778 | I13: 12 | J13: 18592765002775 | K13: 144 | L13: 28592765002772 | M13: 8536201090 | N13: 0.12
A14: 100277 | B14: Ex9BH 1P B13 | C14: Inštalačný istič 10 kA, charakteristika B, 13 A, 1pól | D14: NAA | E14: 4.27 | F14: 0 | G14: 4.27 | H14: 8592765002785 | I14: 12 | J14: 18592765002782 | K14: 144 | L14: 28592765002789 | M14: 8536201090 | N14: 0.12
A15: 100278 | B15: Ex9BH 1P B16 | C15: Inštalačný istič 10 kA, charakteristika B, 16 A, 1pól | D15: NAA | E15: 3.14 | F15: 0 | G15: 3.14 | H15: 8592765002792 | I15: 12 | J15: 18592765002799 | K15: 144 | L15: 28592765002796 | M15: 8536201090 | N15: 0.12
A16: 100279 | B16: Ex9BH 1P B20 | C16: Inštalačný istič 10 kA, charakteristika B, 20 A, 1pól | D16: NAA | E16: 4.24 | F16: 0 | G16: 4.24 | H16: 8592765002808 | I16: 12 | J16: 18592765002805 | K16: 144 | L16: 28592765002802 | M16: 8536201090 | N16: 0.12
A17: 100280 | B17: Ex9BH 1P B25 | C17: Inštalačný istič 10 kA, charakteristika B, 25 A, 1pól | D17: NAA | E17: 4.26 | F17: 0 | G17: 4.26 | H17: 8592765002815 | I17: 12 | J17: 18592765002812 | K17: 144 | L17: 28592765002819 | M17: 8536201090 | N17: 0.12
A18: 100281 | B18: Ex9BH 1P B32 | C18: Inštalačný istič 10 kA, charakteristika B, 32 A, 1pól | D18: NAA | E18: 5.45 | F18: 0 | G18: 5.45 | H18: 8592765002822 | I18: 12 | J18: 18592765002829 | K18: 144 | L18: 28592765002826 | M18: 8536201090 | N18: 0.12
A19: 100282 | B19: Ex9BH 1P B40 | C19: Inštalačný istič 10 kA, charakteristika B, 40 A, 1pól | D19: NAA | E19: 6.06 | F19: 0 | G19: 6.06 | H19: 8592765002839 | I19: 12 | J19: 18592765002836 | K19: 144 | L19: 28592765002833 | M19: 8536201090 | N19: 0.12
A20: 100283 | B20: Ex9BH 1P B50 | C20: Inštalačný istič 10 kA, charakteristika B, 50 A, 1pól | D20: NAA | E20: 10.41 | F20: 0 | G20: 10.41 | H20: 8592765002846 | I20: 12 | J20: 18592765002843 | K20: 144 | L20: 28592765002840 | M20: 8536201090 | N20: 0.12
A21: 100284 | B21: Ex9BH 1P B63 | C21: Inštalačný istič 10 kA, charakteristika B, 63 A, 1pól | D21: NAA | E21: 10.49 | F21: 0 | G21: 10.49 | H21: 8592765002853 | I21: 12 | J21: 18592765002850 | K21: 144 | L21: 28592765002857 | M21: 8536201090 | N21: 0.12
A22: 100285 | B22: Ex9BH 1PN B1 | C22: Inštalačný istič 10 kA, charakteristika B, 1 A, 1+Npól | D22: NAA | E22: 9.04 | F22: 0 | G22: 9.04 | H22: 8592765002860 | I22: 6 | J22: 18592765002867 | K22: 72 | L22: 28592765002864 | M22: 8536201090 | N22: 0.24
A23: 100286 | B23: Ex9BH 1PN B2 | C23: Inštalačný istič 10 kA, charakteristika B, 2 A, 1+Npól | D23: NAA | E23: 8.91 | F23: 0 | G23: 8.91 | H23: 8592765002877 | I23: 6 | J23: 18592765002874 | K23: 72 | L23: 28592765002871 | M23: 8536201090 | N23: 0.24
A24: 100287 | B24: Ex9BH 1PN B3 | C24: Inštalačný istič 10 kA, charakteristika B, 3 A, 1+Npól | D24: NAA | E24: 8.78 | F24: 0 | G24: 8.78 | H24: 8592765002884 | I24: 6 | J24: 18592765002881 | K24: 72 | L24: 28592765002888 | M24: 8536201090 | N24: 0.24
A25: 100288 | B25: Ex9BH 1PN B4 | C25: Inštalačný istič 10 kA, charakteristika B, 4 A, 1+Npól | D25: NAA | E25: 8.48 | F25: 0 | G25: 8.48 | H25: 8592765002891 | I25: 6 | J25: 18592765002898 | K25: 72 | L25: 28592765002895 | M25: 8536201090 | N25: 0.24
A26: 100289 | B26: Ex9BH 1PN B6 | C26: Inštalačný istič 10 kA, charakteristika B, 6 A, 1+Npól | D26: NAA | E26: 8.2 | F26: 0 | G26: 8.2 | H26: 8592765002907 | I26: 6 | J26: 18592765002904 | K26: 72 | L26: 28592765002901 | M26: 8536201090 | N26: 0.24
A27: 100290 | B27: Ex9BH 1PN B8 | C27: Inštalačný istič 10 kA, charakteristika B, 8 A, 1+Npól | D27: NAA | E27: 8.44 | F27: 0 | G27: 8.44 | H27: 8592765002914 | I27: 6 | J27: 18592765002911 | K27: 72 | L27: 28592765002918 | M27: 8536201090 | N27: 0.24
A28: 100291 | B28: Ex9BH 1PN B10 | C28: Inštalačný istič 10 kA, charakteristika B, 10 A, 1+Npól | D28: NAA | E28: 8.04 | F28: 0 | G28: 8.04 | H28: 8592765002921 | I28: 6 | J28: 18592765002928 | K28: 72 | L28: 28592765002925 | M28: 8536201090 | N28: 0.24
A29: 100292 | B29: Ex9BH 1PN B13 | C29: Inštalačný istič 10 kA, charakteristika B, 13 A, 1+Npól | D29: NAA | E29: 8.11 | F29: 0 | G29: 8.11 | H29: 8592765002938 | I29: 6 | J29: 18592765002935 | K29: 72 | L29: 28592765002932 | M29: 8536201090 | N29: 0.24
A30: 100293 | B30: Ex9BH 1PN B16 | C30: Inštalačný istič 10 kA, charakteristika B, 16 A, 1+Npól | D30: NAA | E30: 8.04 | F30: 0 | G30: 8.04 | H30: 8592765002945 | I30: 6 | J30: 18592765002942 | K30: 72 | L30: 28592765002949 | M30: 8536201090 | N30: 0.24
A31: 100294 | B31: Ex9BH 1PN B20 | C31: Inštalačný istič 10 kA, charakteristika B, 20 A, 1+Npól | D31: NAA | E31: 8.14 | F31: 0 | G31: 8.14 | H31: 8592765002952 | I31: 6 | J31: 18592765002959 | K31: 72 | L31: 28592765002956 | M31: 8536201090 | N31: 0.24
A32: 100295 | B32: Ex9BH 1PN B25 | C32: Inštalačný istič 10 kA, charakteristika B, 25 A, 1+Npól | D32: NAA | E32: 8.19 | F32: 0 | G32: 8.19 | H32: 8592765002969 | I32: 6 | J32: 18592765002966 | K32: 72 | L32: 28592765002963 | M32: 8536201090 | N32: 0.24
A33: 100296 | B33: Ex9BH 1PN B32 | C33: Inštalačný istič 10 kA, charakteristika B, 32 A, 1+Npól | D33: NAA | E33: 9.87 | F33: 0 | G33: 9.87 | H33: 8592765002976 | I33: 6 | J33: 18592765002973 | K33: 72 | L33: 28592765002970 | M33: 8536201090 | N33: 0.24
A34: 100297 | B34: Ex9BH 1PN B40 | C34: Inštalačný istič 10 kA, charakteristika B, 40 A, 1+Npól | D34: NAA | E34: 9.99 | F34: 0 | G34: 9.99 | H34: 8592765002983 | I34: 6 | J34: 18592765002980 | K34: 72 | L34: 28592765002987 | M34: 8536201090 | N34: 0.24
A35: 100298 | B35: Ex9BH 1PN B50 | C35: Inštalačný istič 10 kA, charakteristika B, 50 A, 1+Npól | D35: NAA | E35: 32.22 | F35: 0 | G35: 32.22 | H35: 8592765002990 | I35: 6 | J35: 18592765002997 | K35: 72 | L35: 28592765002994 | M35: 8536201090 | N35: 0.24
A36: 100299 | B36: Ex9BH 1PN B63 | C36: Inštalačný istič 10 kA, charakteristika B, 63 A, 1+Npól | D36: NAA | E36: 32.42 | F36: 0 | G36: 32.42 | H36: 8592765003003 | I36: 6 | J36: 18592765003000 | K36: 72 | L36: 28592765003007 | M36: 8536201090 | N36: 0.24
A37: 100300 | B37: Ex9BH 2P B1 | C37: Inštalačný istič 10 kA, charakteristika B, 1 A, 2pól | D37: NAA | E37: 12.35 | F37: 0 | G37: 12.35 | H37: 8592765003010 | I37: 6 | J37: 18592765003017 | K37: 72 | L37: 28592765003014 | M37: 8536201090 | N37: 0.24
A38: 100301 | B38: Ex9BH 2P B2 | C38: Inštalačný istič 10 kA, charakteristika B, 2 A, 2pól | D38: NAA | E38: 12.3 | F38: 0 | G38: 12.3 | H38: 8592765003027 | I38: 6 | J38: 18592765003024 | K38: 72 | L38: 28592765003021 | M38: 8536201090 | N38: 0.24
A39: 100302 | B39: Ex9BH 2P B3 | C39: Inštalačný istič 10 kA, charakteristika B, 3 A, 2pól | D39: NAA | E39: 12.27 | F39: 0 | G39: 12.27 | H39: 8592765003034 | I39: 6 | J39: 18592765003031 | K39: 72 | L39: 28592765003038 | M39: 8536201090 | N39: 0.24
A40: 100303 | B40: Ex9BH 2P B4 | C40: Inštalačný istič 10 kA, charakteristika B, 4 A, 2pól | D40: NAA | E40: 12.22 | F40: 0 | G40: 12.22 | H40: 8592765003041 | I40: 6 | J40: 18592765003048 | K40: 72 | L40: 28592765003045 | M40: 8536201090 | N40: 0.24
A41: 100304 | B41: Ex9BH 2P B6 | C41: Inštalačný istič 10 kA, charakteristika B, 6 A, 2pól | D41: NAA | E41: 11.6 | F41: 0 | G41: 11.6 | H41: 8592765003058 | I41: 6 | J41: 18592765003055 | K41: 72 | L41: 28592765003052 | M41: 8536201090 | N41: 0.24
A42: 100305 | B42: Ex9BH 2P B8 | C42: Inštalačný istič 10 kA, charakteristika B, 8 A, 2pól | D42: NAA | E42: 12.18 | F42: 0 | G42: 12.18 | H42: 8592765003065 | I42: 6 | J42: 18592765003062 | K42: 72 | L42: 28592765003069 | M42: 8536201090 | N42: 0.24
A43: 100306 | B43: Ex9BH 2P B10 | C43: Inštalačný istič 10 kA, charakteristika B, 10 A, 2pól | D43: NAA | E43: 9.06 | F43: 0 | G43: 9.06 | H43: 8592765003072 | I43: 6 | J43: 18592765003079 | K43: 72 | L43: 28592765003076 | M43: 8536201090 | N43: 0.24
A44: 100307 | B44: Ex9BH 2P B13 | C44: Inštalačný istič 10 kA, charakteristika B, 13 A, 2pól | D44: NAA | E44: 10.9 | F44: 0 | G44: 10.9 | H44: 8592765003089 | I44: 6 | J44: 18592765003086 | K44: 72 | L44: 28592765003083 | M44: 8536201090 | N44: 0.24
A45: 100308 | B45: Ex9BH 2P B16 | C45: Inštalačný istič 10 kA, charakteristika B, 16 A, 2pól | D45: NAA | E45: 9.06 | F45: 0 | G45: 9.06 | H45: 8592765003096 | I45: 6 | J45: 18592765003093 | K45: 72 | L45: 28592765003090 | M45: 8536201090 | N45: 0.24
A46: 100309 | B46: Ex9BH 2P B20 | C46: Inštalačný istič 10 kA, charakteristika B, 20 A, 2pól | D46: NAA | E46: 11.36 | F46: 0 | G46: 11.36 | H46: 8592765003102 | I46: 6 | J46: 18592765003109 | K46: 72 | L46: 28592765003106 | M46: 8536201090 | N46: 0.24
A47: 100310 | B47: Ex9BH 2P B25 | C47: Inštalačný istič 10 kA, charakteristika B, 25 A, 2pól | D47: NAA | E47: 11.46 | F47: 0 | G47: 11.46 | H47: 8592765003119 | I47: 6 | J47: 18592765003116 | K47: 72 | L47: 28592765003113 | M47: 8536201090 | N47: 0.24
A48: 100311 | B48: Ex9BH 2P B32 | C48: Inštalačný istič 10 kA, charakteristika B, 32 A, 2pól | D48: NAA | E48: 12.4 | F48: 0 | G48: 12.4 | H48: 8592765003126 | I48: 6 | J48: 18592765003123 | K48: 72 | L48: 28592765003120 | M48: 8536201090 | N48: 0.24
A49: 100312 | B49: Ex9BH 2P B40 | C49: Inštalačný istič 10 kA, charakteristika B, 40 A, 2pól | D49: NAA | E49: 14.88 | F49: 0 | G49: 14.88 | H49: 8592765003133 | I49: 6 | J49: 18592765003130 | K49: 72 | L49: 28592765003137 | M49: 8536201090 | N49: 0.24
A50: 100313 | B50: Ex9BH 2P B50 | C50: Inštalačný istič 10 kA, charakteristika B, 50 A, 2pól | D50: NAA | E50: 23.71 | F50: 0 | G50: 23.71 | H50: 8592765003140 | I50: 6 | J50: 18592765003147 | K50: 72 | L50: 28592765003144 | M50: 8536201090 | N50: 0.24
A51: 100314 | B51: Ex9BH 2P B63 | C51: Inštalačný istič 10 kA, charakteristika B, 63 A, 2pól | D51: NAA | E51: 38.65 | F51: 0 | G51: 38.65 | H51: 8592765003157 | I51: 6 | J51: 18592765003154 | K51: 72 | L51: 28592765003151 | M51: 8536201090 | N51: 0.24
A52: 100315 | B52: Ex9BH 3P B1 | C52: Inštalačný istič 10 kA, charakteristika B, 1 A, 3pól | D52: NAA | E52: 16.63 | F52: 0 | G52: 16.63 | H52: 8592765003164 | I52: 4 | J52: 18592765003161 | K52: 48 | L52: 28592765003168 | M52: 8536201090 | N52: 0.36
A53: 100316 | B53: Ex9BH 3P B2 | C53: Inštalačný istič 10 kA, charakteristika B, 2 A, 3pól | D53: NAA | E53: 16.45 | F53: 0 | G53: 16.45 | H53: 8592765003171 | I53: 4 | J53: 18592765003178 | K53: 48 | L53: 28592765003175 | M53: 8536201090 | N53: 0.36
A54: 100317 | B54: Ex9BH 3P B3 | C54: Inštalačný istič 10 kA, charakteristika B, 3 A, 3pól | D54: NAA | E54: 16.21 | F54: 0 | G54: 16.21 | H54: 8592765003188 | I54: 4 | J54: 18592765003185 | K54: 48 | L54: 28592765003182 | M54: 8536201090 | N54: 0.36
A55: 100318 | B55: Ex9BH 3P B4 | C55: Inštalačný istič 10 kA, charakteristika B, 4 A, 3pól | D55: NAA | E55: 16.15 | F55: 0 | G55: 16.15 | H55: 8592765003195 | I55: 4 | J55: 18592765003192 | K55: 48 | L55: 28592765003199 | M55: 8536201090 | N55: 0.36
A56: 100319 | B56: Ex9BH 3P B6 | C56: Inštalačný istič 10 kA, charakteristika B, 6 A, 3pól | D56: NAA | E56: 15.68 | F56: 0 | G56: 15.68 | H56: 8592765003201 | I56: 4 | J56: 18592765003208 | K56: 48 | L56: 28592765003205 | M56: 8536201090 | N56: 0.36
A57: 100320 | B57: Ex9BH 3P B8 | C57: Inštalačný istič 10 kA, charakteristika B, 8 A, 3pól | D57: NAA | E57: 15.68 | F57: 0 | G57: 15.68 | H57: 8592765003218 | I57: 4 | J57: 18592765003215 | K57: 48 | L57: 28592765003212 | M57: 8536201090 | N57: 0.36
A58: 100321 | B58: Ex9BH 3P B10 | C58: Inštalačný istič 10 kA, charakteristika B, 10 A, 3pól | D58: NAA | E58: 12.78 | F58: 0 | G58: 12.78 | H58: 8592765003225 | I58: 4 | J58: 18592765003222 | K58: 48 | L58: 28592765003229 | M58: 8536201090 | N58: 0.36
A59: 100322 | B59: Ex9BH 3P B13 | C59: Inštalačný istič 10 kA, charakteristika B, 13 A, 3pól | D59: NAA | E59: 14.09 | F59: 0 | G59: 14.09 | H59: 8592765003232 | I59: 4 | J59: 18592765003239 | K59: 48 | L59: 28592765003236 | M59: 8536201090 | N59: 0.36
A60: 100323 | B60: Ex9BH 3P B16 | C60: Inštalačný istič 10 kA, charakteristika B, 16 A, 3pól | D60: NAA | E60: 11.06 | F60: 0 | G60: 11.06 | H60: 8592765003249 | I60: 4 | J60: 18592765003246 | K60: 48 | L60: 28592765003243 | M60: 8536201090 | N60: 0.36
A61: 100324 | B61: Ex9BH 3P B20 | C61: Inštalačný istič 10 kA, charakteristika B, 20 A, 3pól | D61: NAA | E61: 12.9 | F61: 0 | G61: 12.9 | H61: 8592765003256 | I61: 4 | J61: 18592765003253 | K61: 48 | L61: 28592765003250 | M61: 8536201090 | N61: 0.36
A62: 100325 | B62: Ex9BH 3P B25 | C62: Inštalačný istič 10 kA, charakteristika B, 25 A, 3pól | D62: NAA | E62: 13.6 | F62: 0 | G62: 13.6 | H62: 8592765003263 | I62: 4 | J62: 18592765003260 | K62: 48 | L62: 28592765003267 | M62: 8536201090 | N62: 0.36
A63: 100326 | B63: Ex9BH 3P B32 | C63: Inštalačný istič 10 kA, charakteristika B, 32 A, 3pól | D63: NAA | E63: 14.33 | F63: 0 | G63: 14.33 | H63: 8592765003270 | I63: 4 | J63: 18592765003277 | K63: 48 | L63: 28592765003274 | M63: 8536201090 | N63: 0.36
A64: 100327 | B64: Ex9BH 3P B40 | C64: Inštalačný istič 10 kA, charakteristika B, 40 A, 3pól | D64: NAA | E64: 19.21 | F64: 0 | G64: 19.21 | H64: 8592765003287 | I64: 4 | J64: 18592765003284 | K64: 48 | L64: 28592765003281 | M64: 8536201090 | N64: 0.36
A65: 100328 | B65: Ex9BH 3P B50 | C65: Inštalačný istič 10 kA, charakteristika B, 50 A, 3pól | D65: NAA | E65: 29.99 | F65: 0 | G65: 29.99 | H65: 8592765003294 | I65: 4 | J65: 18592765003291 | K65: 48 | L65: 28592765003298 | M65: 8536201090 | N65: 0.36
A66: 100329 | B66: Ex9BH 3P B63 | C66: Inštalačný istič 10 kA, charakteristika B, 63 A, 3pól | D66: NAA | E66: 31.4 | F66: 0 | G66: 31.4 | H66: 8592765003300 | I66: 4 | J66: 18592765003307 | K66: 48 | L66: 28592765003304 | M66: 8536201090 | N66: 0.36
A67: 100330 | B67: Ex9BH 3PN B1 | C67: Inštalačný istič 10 kA, charakteristika B, 1 A, 3+Npól | D67: NAA | E67: 27.78 | F67: 0 | G67: 27.78 | H67: 8592765003317 | I67: 3 | J67: 18592765003314 | K67: 36 | L67: 28592765003311 | M67: 8536201090 | N67: 0.48
A68: 100331 | B68: Ex9BH 3PN B2 | C68: Inštalačný istič 10 kA, charakteristika B, 2 A, 3+Npól | D68: NAA | E68: 27.7 | F68: 0 | G68: 27.7 | H68: 8592765003324 | I68: 3 | J68: 18592765003321 | K68: 36 | L68: 28592765003328 | M68: 8536201090 | N68: 0.48
A69: 100332 | B69: Ex9BH 3PN B3 | C69: Inštalačný istič 10 kA, charakteristika B, 3 A, 3+Npól | D69: NAA | E69: 27.62 | F69: 0 | G69: 27.62 | H69: 8592765003331 | I69: 3 | J69: 18592765003338 | K69: 36 | L69: 28592765003335 | M69: 8536201090 | N69: 0.48
A70: 100333 | B70: Ex9BH 3PN B4 | C70: Inštalačný istič 10 kA, charakteristika B, 4 A, 3+Npól | D70: NAA | E70: 27.54 | F70: 0 | G70: 27.54 | H70: 8592765003348 | I70: 3 | J70: 18592765003345 | K70: 36 | L70: 28592765003342 | M70: 8536201090 | N70: 0.48
A71: 100334 | B71: Ex9BH 3PN B6 | C71: Inštalačný istič 10 kA, charakteristika B, 6 A, 3+Npól | D71: NAA | E71: 27.47 | F71: =NAA -> 0 | G71: =E71*(1-F71) -> 27.47 | H71: 8592765003355 | I71: 3 | J71: 18592765003352 | K71: 36 | L71: 28592765003359 | M71: 8536201090 | N71: 0.48
A72: 100335 | B72: Ex9BH 3PN B8 | C72: Inštalačný istič 10 kA, charakteristika B, 8 A, 3+Npól | D72: NAA | E72: 27.4 | F72: 0 | G72: 27.4 | H72: 8592765003362 | I72: 3 | J72: 18592765003369 | K72: 36 | L72: 28592765003366 | M72: 8536201090 | N72: 0.48
A73: 100336 | B73: Ex9BH 3PN B10 | C73: Inštalačný istič 10 kA, charakteristika B, 10 A, 3+Npól | D73: NAA | E73: 19.22 | F73: 0 | G73: 19.22 | H73: 8592765003379 | I73: 3 | J73: 18592765003376 | K73: 36 | L73: 28592765003373 | M73: 8536201090 | N73: 0.48
A74: 100337 | B74: Ex9BH 3PN B13 | C74: Inštalačný istič 10 kA, charakteristika B, 13 A, 3+Npól | D74: NAA | E74: 18.22 | F74: 0 | G74: 18.22 | H74: 8592765003386 | I74: 3 | J74: 18592765003383 | K74: 36 | L74: 28592765003380 | M74: 8536201090 | N74: 0.48
A75: 100338 | B75: Ex9BH 3PN B16 | C75: Inštalačný istič 10 kA, charakteristika B, 16 A, 3+Npól | D75: NAA | E75: 18.22 | F75: 0 | G75: 18.22 | H75: 8592765003393 | I75: 3 | J75: 18592765003390 | K75: 36 | L75: 28592765003397 | M75: 8536201090 | N75: 0.48
A76: 100339 | B76: Ex9BH 3PN B20 | C76: Inštalačný istič 10 kA, charakteristika B, 20 A, 3+Npól | D76: NAA | E76: 18.4 | F76: 0 | G76: 18.4 | H76: 8592765003409 | I76: 3 | J76: 18592765003406 | K76: 36 | L76: 28592765003403 | M76: 8536201090 | N76: 0.48
A77: 100340 | B77: Ex9BH 3PN B25 | C77: Inštalačný istič 10 kA, charakteristika B, 25 A, 3+Npól | D77: NAA | E77: 21.02 | F77: 0 | G77: 21.02 | H77: 8592765003416 | I77: 3 | J77: 18592765003413 | K77: 36 | L77: 28592765003410 | M77: 8536201090 | N77: 0.48
A78: 100341 | B78: Ex9BH 3PN B32 | C78: Inštalačný istič 10 kA, charakteristika B, 32 A, 3+Npól | D78: NAA | E78: 22.68 | F78: 0 | G78: 22.68 | H78: 8592765003423 | I78: 3 | J78: 18592765003420 | K78: 36 | L78: 28592765003427 | M78: 8536201090 | N78: 0.48
A79: 100342 | B79: Ex9BH 3PN B40 | C79: Inštalačný istič 10 kA, charakteristika B, 40 A, 3+Npól | D79: NAA | E79: 27.5 | F79: 0 | G79: 27.5 | H79: 8592765003430 | I79: 3 | J79: 18592765003437 | K79: 36 | L79: 28592765003434 | M79: 8536201090 | N79: 0.48
A80: 100343 | B80: Ex9BH 3PN B50 | C80: Inštalačný istič 10 kA, charakteristika B, 50 A, 3+Npól | D80: NAA | E80: 38.93 | F80: 0 | G80: 38.93 | H80: 8592765003447 | I80: 3 | J80: 18592765003444 | K80: 36 | L80: 28592765003441 | M80: 8536201090 | N80: 0.48
A81: 100344 | B81: Ex9BH 3PN B63 | C81: Inštalačný istič 10 kA, charakteristika B, 63 A, 3+Npól | D81: NAA | E81: 40.66 | F81: 0 | G81: 40.66 | H81: 8592765003454 | I81: 3 | J81: 18592765003451 | K81: 36 | L81: 28592765003458 | M81: 8536201090 | N81: 0.48
A82: 100345 | B82: Ex9BH 4P B1 | C82: Inštalačný istič 10 kA, charakteristika B, 1 A, 4pól | D82: NAA | E82: 29.5 | F82: 0 | G82: 29.5 | H82: 8592765003461 | I82: 3 | J82: 18592765003468 | K82: 36 | L82: 28592765003465 | M82: 8536201090 | N82: 0.48
A83: 100346 | B83: Ex9BH 4P B2 | C83: Inštalačný istič 10 kA, charakteristika B, 2 A, 4pól | D83: NAA | E83: 29.23 | F83: 0 | G83: 29.23 | H83: 8592765003478 | I83: 3 | J83: 18592765003475 | K83: 36 | L83: 28592765003472 | M83: 8536201090 | N83: 0.48
A84: 100347 | B84: Ex9BH 4P B3 | C84: Inštalačný istič 10 kA, charakteristika B, 3 A, 4pól | D84: NAA | E84: 29.03 | F84: 0 | G84: 29.03 | H84: 8592765003485 | I84: 3 | J84: 18592765003482 | K84: 36 | L84: 28592765003489 | M84: 8536201090 | N84: 0.48
A85: 100348 | B85: Ex9BH 4P B4 | C85: Inštalačný istič 10 kA, charakteristika B, 4 A, 4pól | D85: NAA | E85: 28.85 | F85: 0 | G85: 28.85 | H85: 8592765003492 | I85: 3 | J85: 18592765003499 | K85: 36 | L85: 28592765003496 | M85: 8536201090 | N85: 0.48
A86: 100349 | B86: Ex9BH 4P B6 | C86: Inštalačný istič 10 kA, charakteristika B, 6 A, 4pól | D86: NAA | E86: 28.71 | F86: 0 | G86: 28.71 | H86: 8592765003508 | I86: 3 | J86: 18592765003505 | K86: 36 | L86: 28592765003502 | M86: 8536201090 | N86: 0.48
A87: 100350 | B87: Ex9BH 4P B8 | C87: Inštalačný istič 10 kA, charakteristika B, 8 A, 4pól | D87: NAA | E87: 28.61 | F87: 0 | G87: 28.61 | H87: 8592765003515 | I87: 3 | J87: 18592765003512 | K87: 36 | L87: 28592765003519 | M87: 8536201090 | N87: 0.48
A88: 100351 | B88: Ex9BH 4P B10 | C88: Inštalačný istič 10 kA, charakteristika B, 10 A, 4pól | D88: NAA | E88: 21.71 | F88: 0 | G88: 21.71 | H88: 8592765003522 | I88: 3 | J88: 18592765003529 | K88: 36 | L88: 28592765003526 | M88: 8536201090 | N88: 0.48
A89: 100352 | B89: Ex9BH 4P B13 | C89: Inštalačný istič 10 kA, charakteristika B, 13 A, 4pól | D89: NAA | E89: 21.82 | F89: 0 | G89: 21.82 | H89: 8592765003539 | I89: 3 | J89: 18592765003536 | K89: 36 | L89: 28592765003533 | M89: 8536201090 | N89: 0.48
A90: 100353 | B90: Ex9BH 4P B16 | C90: Inštalačný istič 10 kA, charakteristika B, 16 A, 4pól | D90: NAA | E90: 21.64 | F90: 0 | G90: 21.64 | H90: 8592765003546 | I90: 3 | J90: 18592765003543 | K90: 36 | L90: 28592765003540 | M90: 8536201090 | N90: 0.48
A91: 100354 | B91: Ex9BH 4P B20 | C91: Inštalačný istič 10 kA, charakteristika B, 20 A, 4pól | D91: NAA | E91: 21.82 | F91: 0 | G91: 21.82 | H91: 8592765003553 | I91: 3 | J91: 18592765003550 | K91: 36 | L91: 28592765003557 | M91: 8536201090 | N91: 0.48
A92: 100355 | B92: Ex9BH 4P B25 | C92: Inštalačný istič 10 kA, charakteristika B, 25 A, 4pól | D92: NAA | E92: 21.95 | F92: 0 | G92: 21.95 | H92: 8592765003560 | I92: 3 | J92: 18592765003567 | K92: 36 | L92: 28592765003564 | M92: 8536201090 | N92: 0.48
A93: 100356 | B93: Ex9BH 4P B32 | C93: Inštalačný istič 10 kA, charakteristika B, 32 A, 4pól | D93: NAA | E93: 28.37 | F93: 0 | G93: 28.37 | H93: 8592765003577 | I93: 3 | J93: 18592765003574 | K93: 36 | L93: 28592765003571 | M93: 8536201090 | N93: 0.48
A94: 100357 | B94: Ex9BH 4P B40 | C94: Inštalačný istič 10 kA, charakteristika B, 40 A, 4pól | D94: NAA | E94: 28.71 | F94: 0 | G94: 28.71 | H94: 8592765003584 | I94: 3 | J94: 18592765003581 | K94: 36 | L94: 28592765003588 | M94: 8536201090 | N94: 0.48
A95: 100358 | B95: Ex9BH 4P B50 | C95: Inštalačný istič 10 kA, charakteristika B, 50 A, 4pól | D95: NAA | E95: 53.89 | F95: 0 | G95: 53.89 | H95: 8592765003591 | I95: 3 | J95: 18592765003598 | K95: 36 | L95: 28592765003595 | M95: 8536201090 | N95: 0.48
A96: 100359 | B96: Ex9BH 4P B63 | C96: Inštalačný istič 10 kA, charakteristika B, 63 A, 4pól | D96: NAA | E96: 54.36 | F96: 0 | G96: 54.36 | H96: 8592765003607 | I96: 3 | J96: 18592765003604 | K96: 36 | L96: 28592765003601 | M96: 8536201090 | N96: 0.48
A97: 100360 | B97: Ex9BH 1P C1 | C97: Inštalačný istič 10 kA, charakteristika C, 1 A, 1pól | D97: NAA | E97: 5.68 | F97: 0 | G97: 5.68 | H97: 8592765003614 | I97: 12 | J97: 18592765003611 | K97: 144 | L97: 28592765003618 | M97: 8536201090 | N97: 0.12
A98: 100361 | B98: Ex9BH 1P C2 | C98: Inštalačný istič 10 kA, charakteristika C, 2 A, 1pól | D98: NAA | E98: 5.68 | F98: 0 | G98: 5.68 | H98: 8592765003621 | I98: 12 | J98: 18592765003628 | K98: 144 | L98: 28592765003625 | M98: 8536201090 | N98: 0.12
A99: 100362 | B99: Ex9BH 1P C3 | C99: Inštalačný istič 10 kA, charakteristika C, 3 A, 1pól | D99: NAA | E99: 5.68 | F99: 0 | G99: 5.68 | H99: 8592765003638 | I99: 12 | J99: 18592765003635 | K99: 144 | L99: 28592765003632 | M99: 8536201090 | N99: 0.12
A100: 100363 | B100: Ex9BH 1P C4 | C100: Inštalačný istič 10 kA, charakteristika C, 4 A, 1pól | D100: NAA | E100: 5.68 | F100: 0 | G100: 5.68 | H100: 8592765003645 | I100: 12 | J100: 18592765003642 | K100: 144 | L100: 28592765003649 | M100: 8536201090 | N100: 0.12
A101: 100364 | B101: Ex9BH 1P C6 | C101: Inštalačný istič 10 kA, charakteristika C, 6 A, 1pól | D101: NAA | E101: 4.97 | F101: 0 | G101: 4.97 | H101: 8592765003652 | I101: 12 | J101: 18592765003659 | K101: 144 | L101: 28592765003656 | M101: 8536201090 | N101: 0.12
A102: 100365 | B102: Ex9BH 1P C8 | C102: Inštalačný istič 10 kA, charakteristika C, 8 A, 1pól | D102: NAA | E102: 5.06 | F102: 0 | G102: 5.06 | H102: 8592765003669 | I102: 12 | J102: 18592765003666 | K102: 144 | L102: 28592765003663 | M102: 8536201090 | N102: 0.12
A103: 100366 | B103: Ex9BH 1P C10 | C103: Inštalačný istič 10 kA, charakteristika C, 10 A, 1pól | D103: NAA | E103: 4.14 | F103: 0 | G103: 4.14 | H103: 8592765003676 | I103: 12 | J103: 18592765003673 | K103: 144 | L103: 28592765003670 | M103: 8536201090 | N103: 0.12
A104: 100367 | B104: Ex9BH 1P C13 | C104: Inštalačný istič 10 kA, charakteristika C, 13 A, 1pól | D104: NAA | E104: 5.04 | F104: 0 | G104: 5.04 | H104: 8592765003683 | I104: 12 | J104: 18592765003680 | K104: 144 | L104: 28592765003687 | M104: 8536201090 | N104: 0.12
A105: 100368 | B105: Ex9BH 1P C16 | C105: Inštalačný istič 10 kA, charakteristika C, 16 A, 1pól | D105: NAA | E105: 3.93 | F105: 0 | G105: 3.93 | H105: 8592765003690 | I105: 12 | J105: 18592765003697 | K105: 144 | L105: 28592765003694 | M105: 8536201090 | N105: 0.12
A106: 100369 | B106: Ex9BH 1P C20 | C106: Inštalačný istič 10 kA, charakteristika C, 20 A, 1pól | D106: NAA | E106: 4.74 | F106: 0 | G106: 4.74 | H106: 8592765003706 | I106: 12 | J106: 18592765003703 | K106: 144 | L106: 28592765003700 | M106: 8536201090 | N106: 0.12
A107: 100370 | B107: Ex9BH 1P C25 | C107: Inštalačný istič 10 kA, charakteristika C, 25 A, 1pól | D107: NAA | E107: 4.94 | F107: 0 | G107: 4.94 | H107: 8592765003713 | I107: 12 | J107: 18592765003710 | K107: 144 | L107: 28592765003717 | M107: 8536201090 | N107: 0.12
A108: 100371 | B108: Ex9BH 1P C32 | C108: Inštalačný istič 10 kA, charakteristika C, 32 A, 1pól | D108: NAA | E108: 6.16 | F108: 0 | G108: 6.16 | H108: 8592765003720 | I108: 12 | J108: 18592765003727 | K108: 144 | L108: 28592765003724 | M108: 8536201090 | N108: 0.12
A109: 100372 | B109: Ex9BH 1P C40 | C109: Inštalačný istič 10 kA, charakteristika C, 40 A, 1pól | D109: NAA | E109: 6.61 | F109: 0 | G109: 6.61 | H109: 8592765003737 | I109: 12 | J109: 18592765003734 | K109: 144 | L109: 28592765003731 | M109: 8536201090 | N109: 0.12
A110: 100373 | B110: Ex9BH 1P C50 | C110: Inštalačný istič 10 kA, charakteristika C, 50 A, 1pól | D110: NAA | E110: 11.42 | F110: 0 | G110: 11.42 | H110: 8592765003744 | I110: 12 | J110: 18592765003741 | K110: 144 | L110: 28592765003748 | M110: 8536201090 | N110: 0.12
A111: 100374 | B111: Ex9BH 1P C63 | C111: Inštalačný istič 10 kA, charakteristika C, 63 A, 1pól | D111: NAA | E111: 11.77 | F111: 0 | G111: 11.77 | H111: 8592765003751 | I111: 12 | J111: 18592765003758 | K111: 144 | L111: 28592765003755 | M111: 8536201090 | N111: 0.12
A112: 100375 | B112: Ex9BH 1PN C1 | C112: Inštalačný istič 10 kA, charakteristika C, 1 A, 1+Npól | D112: NAA | E112: 10.19 | F112: 0 | G112: 10.19 | H112: 8592765003768 | I112: 6 | J112: 18592765003765 | K112: 72 | L112: 28592765003762 | M112: 8536201090 | N112: 0.24
A113: 100376 | B113: Ex9BH 1PN C2 | C113: Inštalačný istič 10 kA, charakteristika C, 2 A, 1+Npól | D113: NAA | E113: 10.12 | F113: 0 | G113: 10.12 | H113: 8592765003775 | I113: 6 | J113: 18592765003772 | K113: 72 | L113: 28592765003779 | M113: 8536201090 | N113: 0.24
A114: 100377 | B114: Ex9BH 1PN C3 | C114: Inštalačný istič 10 kA, charakteristika C, 3 A, 1+Npól | D114: NAA | E114: 10 | F114: 0 | G114: 10 | H114: 8592765003782 | I114: 6 | J114: 18592765003789 | K114: 72 | L114: 28592765003786 | M114: 8536201090 | N114: 0.24
A115: 100378 | B115: Ex9BH 1PN C4 | C115: Inštalačný istič 10 kA, charakteristika C, 4 A, 1+Npól | D115: NAA | E115: 9.38 | F115: 0 | G115: 9.38 | H115: 8592765003799 | I115: 6 | J115: 18592765003796 | K115: 72 | L115: 28592765003793 | M115: 8536201090 | N115: 0.24
A116: 100379 | B116: Ex9BH 1PN C6 | C116: Inštalačný istič 10 kA, charakteristika C, 6 A, 1+Npól | D116: NAA | E116: 8.66 | F116: 0 | G116: 8.66 | H116: 8592765003805 | I116: 6 | J116: 18592765003802 | K116: 72 | L116: 28592765003809 | M116: 8536201090 | N116: 0.24
A117: 100380 | B117: Ex9BH 1PN C8 | C117: Inštalačný istič 10 kA, charakteristika C, 8 A, 1+Npól | D117: NAA | E117: 9.16 | F117: 0 | G117: 9.16 | H117: 8592765003812 | I117: 6 | J117: 18592765003819 | K117: 72 | L117: 28592765003816 | M117: 8536201090 | N117: 0.24
A118: 100381 | B118: Ex9BH 1PN C10 | C118: Inštalačný istič 10 kA, charakteristika C, 10 A, 1+Npól | D118: NAA | E118: 8.32 | F118: 0 | G118: 8.32 | H118: 8592765003829 | I118: 6 | J118: 18592765003826 | K118: 72 | L118: 28592765003823 | M118: 8536201090 | N118: 0.24
A119: 100382 | B119: Ex9BH 1PN C13 | C119: Inštalačný istič 10 kA, charakteristika C, 13 A, 1+Npól | D119: NAA | E119: 8.7 | F119: 0 | G119: 8.7 | H119: 8592765003836 | I119: 6 | J119: 18592765003833 | K119: 72 | L119: 28592765003830 | M119: 8536201090 | N119: 0.24
A120: 100383 | B120: Ex9BH 1PN C16 | C120: Inštalačný istič 10 kA, charakteristika C, 16 A, 1+Npól | D120: NAA | E120: 8.32 | F120: 0 | G120: 8.32 | H120: 8592765003843 | I120: 6 | J120: 18592765003840 | K120: 72 | L120: 28592765003847 | M120: 8536201090 | N120: 0.24
A121: 100384 | B121: Ex9BH 1PN C20 | C121: Inštalačný istič 10 kA, charakteristika C, 20 A, 1+Npól | D121: NAA | E121: 8.7 | F121: 0 | G121: 8.7 | H121: 8592765003850 | I121: 6 | J121: 18592765003857 | K121: 72 | L121: 28592765003854 | M121: 8536201090 | N121: 0.24
A122: 100385 | B122: Ex9BH 1PN C25 | C122: Inštalačný istič 10 kA, charakteristika C, 25 A, 1+Npól | D122: NAA | E122: 8.8 | F122: 0 | G122: 8.8 | H122: 8592765003867 | I122: 6 | J122: 18592765003864 | K122: 72 | L122: 28592765003861 | M122: 8536201090 | N122: 0.24
A123: 100386 | B123: Ex9BH 1PN C32 | C123: Inštalačný istič 10 kA, charakteristika C, 32 A, 1+Npól | D123: NAA | E123: 9.56 | F123: 0 | G123: 9.56 | H123: 8592765003874 | I123: 6 | J123: 18592765003871 | K123: 72 | L123: 28592765003878 | M123: 8536201090 | N123: 0.24
A124: 100387 | B124: Ex9BH 1PN C40 | C124: Inštalačný istič 10 kA, charakteristika C, 40 A, 1+Npól | D124: NAA | E124: 12.12 | F124: 0 | G124: 12.12 | H124: 8592765003881 | I124: 6 | J124: 18592765003888 | K124: 72 | L124: 28592765003885 | M124: 8536201090 | N124: 0.24
A125: 100388 | B125: Ex9BH 1PN C50 | C125: Inštalačný istič 10 kA, charakteristika C, 50 A, 1+Npól | D125: NAA | E125: 21.89 | F125: 0 | G125: 21.89 | H125: 8592765003898 | I125: 6 | J125: 18592765003895 | K125: 72 | L125: 28592765003892 | M125: 8536201090 | N125: 0.24
A126: 100389 | B126: Ex9BH 1PN C63 | C126: Inštalačný istič 10 kA, charakteristika C, 63 A, 1+Npól | D126: NAA | E126: 25 | F126: 0 | G126: 25 | H126: 8592765003904 | I126: 6 | J126: 18592765003901 | K126: 72 | L126: 28592765003908 | M126: 8536201090 | N126: 0.24
A127: 100390 | B127: Ex9BH 2P C1 | C127: Inštalačný istič 10 kA, charakteristika C, 1 A, 2pól | D127: NAA | E127: 15.32 | F127: 0 | G127: 15.32 | H127: 8592765003911 | I127: 6 | J127: 18592765003918 | K127: 72 | L127: 28592765003915 | M127: 8536201090 | N127: 0.24
A128: 100391 | B128: Ex9BH 2P C2 | C128: Inštalačný istič 10 kA, charakteristika C, 2 A, 2pól | D128: NAA | E128: 15.16 | F128: 0 | G128: 15.16 | H128: 8592765003928 | I128: 6 | J128: 18592765003925 | K128: 72 | L128: 28592765003922 | M128: 8536201090 | N128: 0.24
A129: 100392 | B129: Ex9BH 2P C3 | C129: Inštalačný istič 10 kA, charakteristika C, 3 A, 2pól | D129: NAA | E129: 15.07 | F129: 0 | G129: 15.07 | H129: 8592765003935 | I129: 6 | J129: 18592765003932 | K129: 72 | L129: 28592765003939 | M129: 8536201090 | N129: 0.24
A130: 100393 | B130: Ex9BH 2P C4 | C130: Inštalačný istič 10 kA, charakteristika C, 4 A, 2pól | D130: NAA | E130: 14.98 | F130: 0 | G130: 14.98 | H130: 8592765003942 | I130: 6 | J130: 18592765003949 | K130: 72 | L130: 28592765003946 | M130: 8536201090 | N130: 0.24
A131: 100394 | B131: Ex9BH 2P C6 | C131: Inštalačný istič 10 kA, charakteristika C, 6 A, 2pól | D131: NAA | E131: 12.83 | F131: 0 | G131: 12.83 | H131: 8592765003959 | I131: 6 | J131: 18592765003956 | K131: 72 | L131: 28592765003953 | M131: 8536201090 | N131: 0.24
A132: 100395 | B132: Ex9BH 2P C8 | C132: Inštalačný istič 10 kA, charakteristika C, 8 A, 2pól | D132: NAA | E132: 13.62 | F132: 0 | G132: 13.62 | H132: 8592765003966 | I132: 6 | J132: 18592765003963 | K132: 72 | L132: 28592765003960 | M132: 8536201090 | N132: 0.24
A133: 100396 | B133: Ex9BH 2P C10 | C133: Inštalačný istič 10 kA, charakteristika C, 10 A, 2pól | D133: NAA | E133: 11.8 | F133: 0 | G133: 11.8 | H133: 8592765003973 | I133: 6 | J133: 18592765003970 | K133: 72 | L133: 28592765003977 | M133: 8536201090 | N133: 0.24
A134: 100397 | B134: Ex9BH 2P C13 | C134: Inštalačný istič 10 kA, charakteristika C, 13 A, 2pól | D134: NAA | E134: 11.9 | F134: 0 | G134: 11.9 | H134: 8592765003980 | I134: 6 | J134: 18592765003987 | K134: 72 | L134: 28592765003984 | M134: 8536201090 | N134: 0.24
A135: 100398 | B135: Ex9BH 2P C16 | C135: Inštalačný istič 10 kA, charakteristika C, 16 A, 2pól | D135: NAA | E135: 11.77 | F135: =NAA -> 0 | G135: =E135*(1-F135) -> 11.77 | H135: 8592765003997 | I135: 6 | J135: 18592765003994 | K135: 72 | L135: 28592765003991 | M135: 8536201090 | N135: 0.24
A136: 100399 | B136: Ex9BH 2P C20 | C136: Inštalačný istič 10 kA, charakteristika C, 20 A, 2pól | D136: NAA | E136: 12.26 | F136: 0 | G136: 12.26 | H136: 8592765004000 | I136: 6 | J136: 18592765004007 | K136: 72 | L136: 28592765004004 | M136: 8536201090 | N136: 0.24
A137: 100400 | B137: Ex9BH 2P C25 | C137: Inštalačný istič 10 kA, charakteristika C, 25 A, 2pól | D137: NAA | E137: 12.34 | F137: 0 | G137: 12.34 | H137: 8592765004017 | I137: 6 | J137: 18592765004014 | K137: 72 | L137: 28592765004011 | M137: 8536201090 | N137: 0.24
A138: 100401 | B138: Ex9BH 2P C32 | C138: Inštalačný istič 10 kA, charakteristika C, 32 A, 2pól | D138: NAA | E138: 13.01 | F138: 0 | G138: 13.01 | H138: 8592765004024 | I138: 6 | J138: 18592765004021 | K138: 72 | L138: 28592765004028 | M138: 8536201090 | N138: 0.24
A139: 100402 | B139: Ex9BH 2P C40 | C139: Inštalačný istič 10 kA, charakteristika C, 40 A, 2pól | D139: NAA | E139: 16.82 | F139: 0 | G139: 16.82 | H139: 8592765004031 | I139: 6 | J139: 18592765004038 | K139: 72 | L139: 28592765004035 | M139: 8536201090 | N139: 0.24
A140: 100403 | B140: Ex9BH 2P C50 | C140: Inštalačný istič 10 kA, charakteristika C, 50 A, 2pól | D140: NAA | E140: 32.28 | F140: 0 | G140: 32.28 | H140: 8592765004048 | I140: 6 | J140: 18592765004045 | K140: 72 | L140: 28592765004042 | M140: 8536201090 | N140: 0.24
A141: 100404 | B141: Ex9BH 2P C63 | C141: Inštalačný istič 10 kA, charakteristika C, 63 A, 2pól | D141: NAA | E141: 36.95 | F141: 0 | G141: 36.95 | H141: 8592765004055 | I141: 6 | J141: 18592765004052 | K141: 72 | L141: 28592765004059 | M141: 8536201090 | N141: 0.24
A142: 100405 | B142: Ex9BH 3P C1 | C142: Inštalačný istič 10 kA, charakteristika C, 1 A, 3pól | D142: NAA | E142: 18.9 | F142: 0 | G142: 18.9 | H142: 8592765004062 | I142: 4 | J142: 18592765004069 | K142: 48 | L142: 28592765004066 | M142: 8536201090 | N142: 0.36
A143: 100406 | B143: Ex9BH 3P C2 | C143: Inštalačný istič 10 kA, charakteristika C, 2 A, 3pól | D143: NAA | E143: 18.69 | F143: 0 | G143: 18.69 | H143: 8592765004079 | I143: 4 | J143: 18592765004076 | K143: 48 | L143: 28592765004073 | M143: 8536201090 | N143: 0.36
A144: 100407 | B144: Ex9BH 3P C3 | C144: Inštalačný istič 10 kA, charakteristika C, 3 A, 3pól | D144: NAA | E144: 18.43 | F144: 0 | G144: 18.43 | H144: 8592765004086 | I144: 4 | J144: 18592765004083 | K144: 48 | L144: 28592765004080 | M144: 8536201090 | N144: 0.36
A145: 100408 | B145: Ex9BH 3P C4 | C145: Inštalačný istič 10 kA, charakteristika C, 4 A, 3pól | D145: NAA | E145: 18.35 | F145: 0 | G145: 18.35 | H145: 8592765004093 | I145: 4 | J145: 18592765004090 | K145: 48 | L145: 28592765004097 | M145: 8536201090 | N145: 0.36
A146: 100409 | B146: Ex9BH 3P C6 | C146: Inštalačný istič 10 kA, charakteristika C, 6 A, 3pól | D146: NAA | E146: 16.97 | F146: 0 | G146: 16.97 | H146: 8592765004109 | I146: 4 | J146: 18592765004106 | K146: 48 | L146: 28592765004103 | M146: 8536201090 | N146: 0.36
A147: 100410 | B147: Ex9BH 3P C8 | C147: Inštalačný istič 10 kA, charakteristika C, 8 A, 3pól | D147: NAA | E147: 17.15 | F147: 0 | G147: 17.15 | H147: 8592765004116 | I147: 4 | J147: 18592765004113 | K147: 48 | L147: 28592765004110 | M147: 8536201090 | N147: 0.36
A148: 100411 | B148: Ex9BH 3P C10 | C148: Inštalačný istič 10 kA, charakteristika C, 10 A, 3pól | D148: NAA | E148: 14.51 | F148: 0 | G148: 14.51 | H148: 8592765004123 | I148: 4 | J148: 18592765004120 | K148: 48 | L148: 28592765004127 | M148: 8536201090 | N148: 0.36
A149: 100412 | B149: Ex9BH 3P C13 | C149: Inštalačný istič 10 kA, charakteristika C, 13 A, 3pól | D149: NAA | E149: 16.01 | F149: 0 | G149: 16.01 | H149: 8592765004130 | I149: 4 | J149: 18592765004137 | K149: 48 | L149: 28592765004134 | M149: 8536201090 | N149: 0.36
A150: 100413 | B150: Ex9BH 3P C16 | C150: Inštalačný istič 10 kA, charakteristika C, 16 A, 3pól | D150: NAA | E150: 13.63 | F150: 0 | G150: 13.63 | H150: 8592765004147 | I150: 4 | J150: 18592765004144 | K150: 48 | L150: 28592765004141 | M150: 8536201090 | N150: 0.36
A151: 100414 | B151: Ex9BH 3P C20 | C151: Inštalačný istič 10 kA, charakteristika C, 20 A, 3pól | D151: NAA | E151: 14.44 | F151: 0 | G151: 14.44 | H151: 8592765004154 | I151: 4 | J151: 18592765004151 | K151: 48 | L151: 28592765004158 | M151: 8536201090 | N151: 0.36
A152: 100415 | B152: Ex9BH 3P C25 | C152: Inštalačný istič 10 kA, charakteristika C, 25 A, 3pól | D152: NAA | E152: 14.5 | F152: 0 | G152: 14.5 | H152: 8592765004161 | I152: 4 | J152: 18592765004168 | K152: 48 | L152: 28592765004165 | M152: 8536201090 | N152: 0.36
A153: 100416 | B153: Ex9BH 3P C32 | C153: Inštalačný istič 10 kA, charakteristika C, 32 A, 3pól | D153: NAA | E153: 16.27 | F153: 0 | G153: 16.27 | H153: 8592765004178 | I153: 4 | J153: 18592765004175 | K153: 48 | L153: 28592765004172 | M153: 8536201090 | N153: 0.36
A154: 100417 | B154: Ex9BH 3P C40 | C154: Inštalačný istič 10 kA, charakteristika C, 40 A, 3pól | D154: NAA | E154: 20.98 | F154: 0 | G154: 20.98 | H154: 8592765004185 | I154: 4 | J154: 18592765004182 | K154: 48 | L154: 28592765004189 | M154: 8536201090 | N154: 0.36
A155: 100418 | B155: Ex9BH 3P C50 | C155: Inštalačný istič 10 kA, charakteristika C, 50 A, 3pól | D155: NAA | E155: 35.14 | F155: 0 | G155: 35.14 | H155: 8592765004192 | I155: 4 | J155: 18592765004199 | K155: 48 | L155: 28592765004196 | M155: 8536201090 | N155: 0.36
A156: 100419 | B156: Ex9BH 3P C63 | C156: Inštalačný istič 10 kA, charakteristika C, 63 A, 3pól | D156: NAA | E156: 37.75 | F156: 0 | G156: 37.75 | H156: 8592765004208 | I156: 4 | J156: 18592765004205 | K156: 48 | L156: 28592765004202 | M156: 8536201090 | N156: 0.36
A157: 100420 | B157: Ex9BH 3PN C1 | C157: Inštalačný istič 10 kA, charakteristika C, 1 A, 3+Npól | D157: NAA | E157: 37.67 | F157: 0 | G157: 37.67 | H157: 8592765004215 | I157: 3 | J157: 18592765004212 | K157: 36 | L157: 28592765004219 | M157: 8536201090 | N157: 0.48
A158: 100421 | B158: Ex9BH 3PN C2 | C158: Inštalačný istič 10 kA, charakteristika C, 2 A, 3+Npól | D158: NAA | E158: 37.4 | F158: 0 | G158: 37.4 | H158: 8592765004222 | I158: 3 | J158: 18592765004229 | K158: 36 | L158: 28592765004226 | M158: 8536201090 | N158: 0.48
A159: 100422 | B159: Ex9BH 3PN C3 | C159: Inštalačný istič 10 kA, charakteristika C, 3 A, 3+Npól | D159: NAA | E159: 37.19 | F159: 0 | G159: 37.19 | H159: 8592765004239 | I159: 3 | J159: 18592765004236 | K159: 36 | L159: 28592765004233 | M159: 8536201090 | N159: 0.48
A160: 100423 | B160: Ex9BH 3PN C4 | C160: Inštalačný istič 10 kA, charakteristika C, 4 A, 3+Npól | D160: NAA | E160: 37.01 | F160: 0 | G160: 37.01 | H160: 8592765004246 | I160: 3 | J160: 18592765004243 | K160: 36 | L160: 28592765004240 | M160: 8536201090 | N160: 0.48
A161: 100424 | B161: Ex9BH 3PN C6 | C161: Inštalačný istič 10 kA, charakteristika C, 6 A, 3+Npól | D161: NAA | E161: 28.28 | F161: 0 | G161: 28.28 | H161: 8592765004253 | I161: 3 | J161: 18592765004250 | K161: 36 | L161: 28592765004257 | M161: 8536201090 | N161: 0.48
A162: 100425 | B162: Ex9BH 3PN C8 | C162: Inštalačný istič 10 kA, charakteristika C, 8 A, 3+Npól | D162: NAA | E162: 33.76 | F162: 0 | G162: 33.76 | H162: 8592765004260 | I162: 3 | J162: 18592765004267 | K162: 36 | L162: 28592765004264 | M162: 8536201090 | N162: 0.48
A163: 100426 | B163: Ex9BH 3PN C10 | C163: Inštalačný istič 10 kA, charakteristika C, 10 A, 3+Npól | D163: NAA | E163: 25.17 | F163: 0 | G163: 25.17 | H163: 8592765004277 | I163: 3 | J163: 18592765004274 | K163: 36 | L163: 28592765004271 | M163: 8536201090 | N163: 0.48
A164: 100427 | B164: Ex9BH 3PN C13 | C164: Inštalačný istič 10 kA, charakteristika C, 13 A, 3+Npól | D164: NAA | E164: 25.17 | F164: 0 | G164: 25.17 | H164: 8592765004284 | I164: 3 | J164: 18592765004281 | K164: 36 | L164: 28592765004288 | M164: 8536201090 | N164: 0.48
A165: 100428 | B165: Ex9BH 3PN C16 | C165: Inštalačný istič 10 kA, charakteristika C, 16 A, 3+Npól | D165: NAA | E165: 25.17 | F165: 0 | G165: 25.17 | H165: 8592765004291 | I165: 3 | J165: 18592765004298 | K165: 36 | L165: 28592765004295 | M165: 8536201090 | N165: 0.48
A166: 100429 | B166: Ex9BH 3PN C20 | C166: Inštalačný istič 10 kA, charakteristika C, 20 A, 3+Npól | D166: NAA | E166: 25.17 | F166: 0 | G166: 25.17 | H166: 8592765004307 | I166: 3 | J166: 18592765004304 | K166: 36 | L166: 28592765004301 | M166: 8536201090 | N166: 0.48
A167: 100430 | B167: Ex9BH 3PN C25 | C167: Inštalačný istič 10 kA, charakteristika C, 25 A, 3+Npól | D167: NAA | E167: 27.69 | F167: 0 | G167: 27.69 | H167: 8592765004314 | I167: 3 | J167: 18592765004311 | K167: 36 | L167: 28592765004318 | M167: 8536201090 | N167: 0.48
A168: 100431 | B168: Ex9BH 3PN C32 | C168: Inštalačný istič 10 kA, charakteristika C, 32 A, 3+Npól | D168: NAA | E168: 25.93 | F168: 0 | G168: 25.93 | H168: 8592765004321 | I168: 3 | J168: 18592765004328 | K168: 36 | L168: 28592765004325 | M168: 8536201090 | N168: 0.48
A169: 100432 | B169: Ex9BH 3PN C40 | C169: Inštalačný istič 10 kA, charakteristika C, 40 A, 3+Npól | D169: NAA | E169: 32.03 | F169: 0 | G169: 32.03 | H169: 8592765004338 | I169: 3 | J169: 18592765004335 | K169: 36 | L169: 28592765004332 | M169: 8536201090 | N169: 0.48
A170: 100433 | B170: Ex9BH 3PN C50 | C170: Inštalačný istič 10 kA, charakteristika C, 50 A, 3+Npól | D170: NAA | E170: 51.83 | F170: 0 | G170: 51.83 | H170: 8592765004345 | I170: 3 | J170: 18592765004342 | K170: 36 | L170: 28592765004349 | M170: 8536201090 | N170: 0.48
A171: 100434 | B171: Ex9BH 3PN C63 | C171: Inštalačný istič 10 kA, charakteristika C, 63 A, 3+Npól | D171: NAA | E171: 56.54 | F171: 0 | G171: 56.54 | H171: 8592765004352 | I171: 3 | J171: 18592765004359 | K171: 36 | L171: 28592765004356 | M171: 8536201090 | N171: 0.48
A172: 100435 | B172: Ex9BH 4P C1 | C172: Inštalačný istič 10 kA, charakteristika C, 1 A, 4pól | D172: NAA | E172: 40.54 | F172: 0 | G172: 40.54 | H172: 8592765004369 | I172: 3 | J172: 18592765004366 | K172: 36 | L172: 28592765004363 | M172: 8536201090 | N172: 0.48
A173: 100436 | B173: Ex9BH 4P C2 | C173: Inštalačný istič 10 kA, charakteristika C, 2 A, 4pól | D173: NAA | E173: 40.14 | F173: 0 | G173: 40.14 | H173: 8592765004376 | I173: 3 | J173: 18592765004373 | K173: 36 | L173: 28592765004370 | M173: 8536201090 | N173: 0.48
A174: 100437 | B174: Ex9BH 4P C3 | C174: Inštalačný istič 10 kA, charakteristika C, 3 A, 4pól | D174: NAA | E174: 39.91 | F174: 0 | G174: 39.91 | H174: 8592765004383 | I174: 3 | J174: 18592765004380 | K174: 36 | L174: 28592765004387 | M174: 8536201090 | N174: 0.48
A175: 100438 | B175: Ex9BH 4P C4 | C175: Inštalačný istič 10 kA, charakteristika C, 4 A, 4pól | D175: NAA | E175: 39.71 | F175: 0 | G175: 39.71 | H175: 8592765004390 | I175: 3 | J175: 18592765004397 | K175: 36 | L175: 28592765004394 | M175: 8536201090 | N175: 0.48
A176: 100439 | B176: Ex9BH 4P C6 | C176: Inštalačný istič 10 kA, charakteristika C, 6 A, 4pól | D176: NAA | E176: 39.53 | F176: 0 | G176: 39.53 | H176: 8592765004406 | I176: 3 | J176: 18592765004403 | K176: 36 | L176: 28592765004400 | M176: 8536201090 | N176: 0.48
A177: 100440 | B177: Ex9BH 4P C8 | C177: Inštalačný istič 10 kA, charakteristika C, 8 A, 4pól | D177: NAA | E177: 39.53 | F177: 0 | G177: 39.53 | H177: 8592765004413 | I177: 3 | J177: 18592765004410 | K177: 36 | L177: 28592765004417 | M177: 8536201090 | N177: 0.48
A178: 100441 | B178: Ex9BH 4P C10 | C178: Inštalačný istič 10 kA, charakteristika C, 10 A, 4pól | D178: NAA | E178: 31.05 | F178: 0 | G178: 31.05 | H178: 8592765004420 | I178: 3 | J178: 18592765004427 | K178: 36 | L178: 28592765004424 | M178: 8536201090 | N178: 0.48
A179: 100442 | B179: Ex9BH 4P C13 | C179: Inštalačný istič 10 kA, charakteristika C, 13 A, 4pól | D179: NAA | E179: 31.45 | F179: 0 | G179: 31.45 | H179: 8592765004437 | I179: 3 | J179: 18592765004434 | K179: 36 | L179: 28592765004431 | M179: 8536201090 | N179: 0.48
A180: 100443 | B180: Ex9BH 4P C16 | C180: Inštalačný istič 10 kA, charakteristika C, 16 A, 4pól | D180: NAA | E180: 30.95 | F180: 0 | G180: 30.95 | H180: 8592765004444 | I180: 3 | J180: 18592765004441 | K180: 36 | L180: 28592765004448 | M180: 8536201090 | N180: 0.48
A181: 100444 | B181: Ex9BH 4P C20 | C181: Inštalačný istič 10 kA, charakteristika C, 20 A, 4pól | D181: NAA | E181: 31.45 | F181: 0 | G181: 31.45 | H181: 8592765004451 | I181: 3 | J181: 18592765004458 | K181: 36 | L181: 28592765004455 | M181: 8536201090 | N181: 0.48
A182: 100445 | B182: Ex9BH 4P C25 | C182: Inštalačný istič 10 kA, charakteristika C, 25 A, 4pól | D182: NAA | E182: 31.61 | F182: 0 | G182: 31.61 | H182: 8592765004468 | I182: 3 | J182: 18592765004465 | K182: 36 | L182: 28592765004462 | M182: 8536201090 | N182: 0.48
A183: 100446 | B183: Ex9BH 4P C32 | C183: Inštalačný istič 10 kA, charakteristika C, 32 A, 4pól | D183: NAA | E183: 40.14 | F183: 0 | G183: 40.14 | H183: 8592765004475 | I183: 3 | J183: 18592765004472 | K183: 36 | L183: 28592765004479 | M183: 8536201090 | N183: 0.48
A184: 100447 | B184: Ex9BH 4P C40 | C184: Inštalačný istič 10 kA, charakteristika C, 40 A, 4pól | D184: NAA | E184: 40.59 | F184: 0 | G184: 40.59 | H184: 8592765004482 | I184: 3 | J184: 18592765004489 | K184: 36 | L184: 28592765004486 | M184: 8536201090 | N184: 0.48
A185: 100448 | B185: Ex9BH 4P C50 | C185: Inštalačný istič 10 kA, charakteristika C, 50 A, 4pól | D185: NAA | E185: 80.63 | F185: 0 | G185: 80.63 | H185: 8592765004499 | I185: 3 | J185: 18592765004496 | K185: 36 | L185: 28592765004493 | M185: 8536201090 | N185: 0.48
A186: 100449 | B186: Ex9BH 4P C63 | C186: Inštalačný istič 10 kA, charakteristika C, 63 A, 4pól | D186: NAA | E186: 80.76 | F186: 0 | G186: 80.76 | H186: 8592765004505 | I186: 3 | J186: 18592765004502 | K186: 36 | L186: 28592765004509 | M186: 8536201090 | N186: 0.48
A187: 100450 | B187: Ex9BH 1P D1 | C187: Inštalačný istič 10 kA, charakteristika D, 1 A, 1pól | D187: NAA | E187: 7.34 | F187: 0 | G187: 7.34 | H187: 8592765004512 | I187: 12 | J187: 18592765004519 | K187: 144 | L187: 28592765004516 | M187: 8536201090 | N187: 0.12
A188: 100451 | B188: Ex9BH 1P D2 | C188: Inštalačný istič 10 kA, charakteristika D, 2 A, 1pól | D188: NAA | E188: 7.51 | F188: 0 | G188: 7.51 | H188: 8592765004529 | I188: 12 | J188: 18592765004526 | K188: 144 | L188: 28592765004523 | M188: 8536201090 | N188: 0.12
A189: 100452 | B189: Ex9BH 1P D3 | C189: Inštalačný istič 10 kA, charakteristika D, 3 A, 1pól | D189: NAA | E189: 6.9 | F189: 0 | G189: 6.9 | H189: 8592765004536 | I189: 12 | J189: 18592765004533 | K189: 144 | L189: 28592765004530 | M189: 8536201090 | N189: 0.12
A190: 100453 | B190: Ex9BH 1P D4 | C190: Inštalačný istič 10 kA, charakteristika D, 4 A, 1pól | D190: NAA | E190: 7.81 | F190: 0 | G190: 7.81 | H190: 8592765004543 | I190: 12 | J190: 18592765004540 | K190: 144 | L190: 28592765004547 | M190: 8536201090 | N190: 0.12
A191: 100454 | B191: Ex9BH 1P D6 | C191: Inštalačný istič 10 kA, charakteristika D, 6 A, 1pól | D191: NAA | E191: 5.45 | F191: 0 | G191: 5.45 | H191: 8592765004550 | I191: 12 | J191: 18592765004557 | K191: 144 | L191: 28592765004554 | M191: 8536201090 | N191: 0.12
A192: 100455 | B192: Ex9BH 1P D8 | C192: Inštalačný istič 10 kA, charakteristika D, 8 A, 1pól | D192: NAA | E192: 5.63 | F192: 0 | G192: 5.63 | H192: 8592765004567 | I192: 12 | J192: 18592765004564 | K192: 144 | L192: 28592765004561 | M192: 8536201090 | N192: 0.12
A193: 100456 | B193: Ex9BH 1P D10 | C193: Inštalačný istič 10 kA, charakteristika D, 10 A, 1pól | D193: NAA | E193: 4.5 | F193: 0 | G193: 4.5 | H193: 8592765004574 | I193: 12 | J193: 18592765004571 | K193: 144 | L193: 28592765004578 | M193: 8536201090 | N193: 0.12
A194: 100457 | B194: Ex9BH 1P D13 | C194: Inštalačný istič 10 kA, charakteristika D, 13 A, 1pól | D194: NAA | E194: 5.45 | F194: 0 | G194: 5.45 | H194: 8592765004581 | I194: 12 | J194: 18592765004588 | K194: 144 | L194: 28592765004585 | M194: 8536201090 | N194: 0.12
A195: 100458 | B195: Ex9BH 1P D16 | C195: Inštalačný istič 10 kA, charakteristika D, 16 A, 1pól | D195: NAA | E195: 4.35 | F195: 0 | G195: 4.35 | H195: 8592765004598 | I195: 12 | J195: 18592765004595 | K195: 144 | L195: 28592765004592 | M195: 8536201090 | N195: 0.12
A196: 100459 | B196: Ex9BH 1P D20 | C196: Inštalačný istič 10 kA, charakteristika D, 20 A, 1pól | D196: NAA | E196: 5.53 | F196: 0 | G196: 5.53 | H196: 8592765004604 | I196: 12 | J196: 18592765004601 | K196: 144 | L196: 28592765004608 | M196: 8536201090 | N196: 0.12
A197: 100460 | B197: Ex9BH 1P D25 | C197: Inštalačný istič 10 kA, charakteristika D, 25 A, 1pól | D197: NAA | E197: 5.55 | F197: 0 | G197: 5.55 | H197: 8592765004611 | I197: 12 | J197: 18592765004618 | K197: 144 | L197: 28592765004615 | M197: 8536201090 | N197: 0.12
A198: 100461 | B198: Ex9BH 1P D32 | C198: Inštalačný istič 10 kA, charakteristika D, 32 A, 1pól | D198: NAA | E198: 6.97 | F198: 0 | G198: 6.97 | H198: 8592765004628 | I198: 12 | J198: 18592765004625 | K198: 144 | L198: 28592765004622 | M198: 8536201090 | N198: 0.12
A199: 100462 | B199: Ex9BH 1P D40 | C199: Inštalačný istič 10 kA, charakteristika D, 40 A, 1pól | D199: NAA | E199: 8.42 | F199: =NAA -> 0 | G199: =E199*(1-F199) -> 8.42 | H199: 8592765004635 | I199: 12 | J199: 18592765004632 | K199: 144 | L199: 28592765004639 | M199: 8536201090 | N199: 0.12
A200: 100463 | B200: Ex9BH 1P D50 | C200: Inštalačný istič 10 kA, charakteristika D, 50 A, 1pól | D200: NAA | E200: 14.35 | F200: 0 | G200: 14.35 | H200: 8592765004642 | I200: 12 | J200: 18592765004649 | K200: 144 | L200: 28592765004646 | M200: 8536201090 | N200: 0.12
A201: 100464 | B201: Ex9BH 1P D63 | C201: Inštalačný istič 10 kA, charakteristika D, 63 A, 1pól | D201: NAA | E201: 14.56 | F201: 0 | G201: 14.56 | H201: 8592765004659 | I201: 12 | J201: 18592765004656 | K201: 144 | L201: 28592765004653 | M201: 8536201090 | N201: 0.12
A202: 100465 | B202: Ex9BH 1PN D1 | C202: Inštalačný istič 10 kA, charakteristika D, 1 A, 1+Npól | D202: NAA | E202: 12.2 | F202: 0 | G202: 12.2 | H202: 8592765004666 | I202: 6 | J202: 18592765004663 | K202: 72 | L202: 28592765004660 | M202: 8536201090 | N202: 0.24
... 6288 more rows

Sheet Rabatové podmienky
A1: Rabatová skupina | B1: Popis | C1: Zľava
A2: NA | B2: Inštalačné prístroje | C2: 0
A3: NAA | B3: Inštalačné ističe 10 kA | C3: =NA -> 0
A4: NAB | B4: Inštalačné ističe 6 kA | C4: 0
A5: NAC | B5: Prúdové chrániče 10 kA | C5: 0
A6: NAD | B6: Prúdové chrániče 6 kA | C6: 0
A7: NAE | B7: Prúdové chrániče s nadprúdovou ochranou 10 kA | C7: 0
A8: NAF | B8: Prúdové chrániče s nadprúdovou ochranou 6 kA | C8: 0
A9: NAG | B9: Chráničové moduly | C9: 0
A10: NAH | B10: Modulárne hlavné vypínače | C10: 0
A11: NAI | B11: Inštalačné ističe Ex9PN-N, 6 kA | C11: =NA -> 0
A12: NAL | B12: DC inštalačné ističe 10 kA, nepolarizované | C12: 0
A13: NAM | B13: DC inštalačné ističe 6 kA, nepolarizované | C13: 0
A14: NAN | B14: DC instalačné vypínače | C14: =NA -> 0
A15: NAO | B15: DC zvodiče prepätia triedy II pre PV | C15: 0
A16: NAP | B16: DC inštalačné ističe 10 kA pre PV, nepolarizované | C16: 0
A17: NAQ | B17: DC inštalačné ističe 6 kA pre PV, nepolarizované | C17: 0
A18: NAR | B18: AC zvodiče prepätia triedy I+II a II | C18: =NA -> 0
A19: NAS | B19: Instalačné relé a stýkače | C19: =NA -> 0
A20: NAU | B20: Prepínače, Signálky a zvončeky | C20: =NA -> 0
A21: NAV | B21: DC inštalačné ističe 10 kA, polarizované | C21: 0
A22: NAW | B22: Inštalačné ističe do 125 A | C22: =NA -> 0
A23: NAX | B23: Inštalačné časové, súmrakové a schodiskové spínače | C23: 0
A24: NAZ | B24: Elektromery | C24: 0
A25: NAAA | B25: Jednomodulový Elektronický prúd. chránič s nadpr. ochr | C25: 0
A26: NAAB | B26: Úzky inštalačný istič 6kA | C26: 0
A27: NAAC | B27: Zdroje napätia | C27: 0
A29: NB | B29: Priemyselné spínacie prístroje | C29: 0
A30: NBA | B30: Stýkače, reverzačné stýkače | C30: =NB -> 0
A31: NBB | B31: Nadprúdové relé | C31: 0
A32: NBC | B32: Stýkače pre spínanie kapacitnej záťaže | C32: 0
A33: NBD | B33: Stýkače Ci | C33: 0
A34: NBF | B34: Zabudovatelné prístroje | C34: 0
A35: NBG | B35: Motorové spúšťače | C35: 0
A36: NBH | B36: Zásuvná relé | C36: 0
A37: NBI | B37: Inštalačné stýkače s ručným ovládaním | C37: 0
A39: NC | B39: Výkonové ističe | C39: 0
A40: NCA | B40: Kompaktné výkonové ističe | C40: =NC -> 0
A41: NCB | B41: DC Kompaktné výkonové ističe | C41: 0
A42: NCC | B42: Vzuchové ističe a dopínače | C42: 0
A43: NCD | B43: AC odpínače | C43: 0
A44: NCE | B44: DC odpínače | C44: 0
A45: NCF | B45: Kompaktné ističe s elektronickou spúšťou | C45: 0
A47: ND | B47: Rozvádzačové skrine a prepojovacie systémy | C47: 0
A48: NDA | B48: Plastové rozvodnice | C48: =ND -> 0
A49: NDB | B49: Prepojovacie systémy | C49: 0
A50: NDC | B50: Plastové rozvodnice s bielymi plechovými dverami | C50: 0
A51: NDD | B51: Metal flat enclosures | C51: 0
A52: NDE | B52: Svorkovnice | C52: 0
A53: NDF | B53: Plastové rozvodnice pre montáž do dutých stien | C53: 0
A54: NDG | B54: GRP Rozvodnice | C54: =ND -> 0
A55: NDH | B55: Oceľoplechové rozvádzače IP66 | C55: =ND -> 0
A56: NDAA | B56: Plastové rozvodnice PHS | C56: =ND -> 0
A58: NE | B58: Poistkové systémy | C58: 0
A59: NEA | B59: Poistkové odpojovače | C59: =NE -> 0
A60: NEB | B60: Poistkové odpínače | C60: =NE -> 0
A62: NF | B62: Rozvádzače | C62: 0
A63: NFA | B63: Domové rozvádzače | C63: =NF -> 0
A64: NFB | B64: DC boards for PV applications | C64: =NF -> 0
A66: NG | B66: PV aplikácie | C66: 0
A67: NGC | B67: Monitorovacie zariadenie | C67: =NG -> 0
A68: NGD | B68: EV nabíječky | C68: =NG -> 0

Sheet Objednávka
A1: Objednávka č.
A2: Dodávateľ:
A3: NOARK Electric Europe s.r.o. | D3: IČ: 24123846 | F3: DIČ: CZ 24123846
A4: Sezemická 2757/2 | D4: Č. účtu: 51-0016810227/0100 | F4: Banka: 0100
A5: 193 00 Praha 9 | D5: "Meno obchodníka" | F5: Tel.:
A6: Czech Republic | D6: Email:
A7: Odberateľ: | D7: ID zákazníka: | F7: Dátum:
D8: IČ: | F8: DIČ:
D9: Č. účtu: | F9: Banka:
D10: "Kontaktná osoba" | F10: Tel.:
D11: Email:
A13: Číslo položky | B13: Obj. číslo | C13: Typové označenie | D13: Popis | E13: Rabatová skupina | F13: Cena po zľave (EUR) | G13: kusov | H13: Celková cena (EUR)
H14: 0
E18: Celková cena objednávky: | H18: =SUM(H14:H14) -> 0
A20: Všetky ceny sú uvedené bez DPH. Všetky dohodnuté cenové podmienky, obsah dodávky a zpôsob dodania sa riadi
A21: Všeobecnými obchodnými podmienkami, prípadne individuálnou Rámcovou zmluvou a jej dodatkami.

Sheet Cenová ponuka
A1: Cenová ponuka č.
A2: Dodávateľ:
A3: NOARK Electric Europe s.r.o. | D3: IČ: 24123846 | F3: DIČ: CZ 24123846
A4: Sezemická 2757/2 | D4: Č. účtu: 51-0016810227/0100 | F4: Banka: 0100
A5: 193 00 Praha 9 | D5: "Meno obchodníka" | F5: Tel.:
A6: Czech Republic | D6: Email:
A7: Odberateľ: | D7: ID zákazníka: | F7: Dátum:
D8: IČ: | F8: DIČ:
D9: Č. účtu: | F9: Banka:
D10: "Kontaktná osoba" | F10: Tel.:
D11: Email:
A13: Číslo položky | B13: Obj. číslo | C13: Typové označenie | D13: Popis | E13: Rabatová skupina | F13: Cena po zľave (EUR) | G13: Počet kusov | H13: Celková cena (EUR)
H14: 0
E18: Celková cena ponuky: | H18: =SUM(H14:H14) -> 0
A20: Všetky ceny sú uvedené bez DPH. Všetky dohodnuté cenové podmienky, obsah dodávky a zpôsob dodania sa riadi
A21: Všeobecnými obchodnými podmienkami, prípadne individuálnou Rámcovou zmluvou a jej dodatkami.
A22: Cena je platná pri odbere celého dopytovaného tovaru a množstva.
A23: Pokiaľ sa zmení dopyt, zmení sa aj ponuka v závislosti na produktoch a množstve.

Sheet Všeobecné obchodné podmienky
B2: ______________________________________________________
B3: VŠEOBECNÉ OBCHODNÉ PODMIENKY
B4: ______________________________________________________
B8: I. ÚVODNÉ USTANOVENIE
B9: 1.1 Tieto všeobecné obchodné podmienky („VOP“) spoločnosti NOARK Electric Europe s.r.o., so sídlom Praha 9, Horní Počernice, Sezemická 2757/2, PSČ: 193 00, zapísanej v obchodnom registri vedeným Mestským súdom v Prahe, oddiel C, vložka 181277 („Predávajúci“), vymedzujú vzájomné práva a povinnosti medzi Predávajúcim a osobou („Kupujúci“), ktorá má záujem nakúpiť tovar ponúkaný Predávajúcim („Tovar“) v aktuálnom cenníku Tovaru („Cenník“).
B10: 1.2 Ak medzi Predávajúcim a Kupujúcim (spoločne „Strany“, alebo jednotlivo "Strana") nebola uzatvorená rámcová zmluva („Rámcová zmluva“) určujúca v jednotlivých bodoch odlišnú úpravu, predstavujú tieto VOP a Kúpna zmluva (ako je definovaná nižšie) úplnú a konečnú dohodu Strán o podmienkach dodania a odobratia Tovaru. V otázkach tu neupravených sa bude postupovať v súlade s príslušnými ustanoveniami zákona č. 513/1991 Z.z., obchodný zákonník, v platnom znení („ObchZ“).
B12: II. OBJEDNÁVKA TOVARU
B13: 2.1 Predávajúci oboznámil Kupujúceho s obsahom týchto VOP a Kupujúci na ich základe a na základe ďalších informácií poskytnutých Predávajúcim prejavil prostredníctvom objednávky („Objednávka“) vôľu nakúpiť od Predávajúceho Tovar za cenu uvedenú v Cenníku alebo inak dohodnutú („Kúpna cena“).
B14: 2.2 Objednávka bude vždy obsahovať: (a) identifikačné údaje osoby oprávnenej zastupovať Kupujúceho, (b) popis (kód) objednávaného Tovaru podľa Cenníka a počet kusov, a (c) spôsob dodania Tovaru, poprípade ďalšie náležitosti, na ktorých sa Strany dohodli. Kupujúci odovzdá Predávajúcemu vyplnenú Objednávku osobne, doručením na adresu sídla Predávajúceho alebo na adresu uvedenú v Rámcovej zmluve, popr. doručí Objednávku Predávajúcemu e-mailom alebo iným dohodnutým spôsobom. Objednávka sa považuje za návrh na uzatvorenie individuálnej kúpnej zmluvy („Kúpna zmluva“) a stáva sa tak záväznou okamžikom jej doručenia Predávajúcemu. Kupujúci odoslaním Objednávky prejavuje výslovný súhlas s tým, aby sa Kúpna zmluva (a všetky povinnosti z nej vyplývajúce) riadila VOP. Predávajúci má povinnosť na doručenej Objednávke vyznačiť deň tohoto doručenia. Podpisom Predávajúceho na doručenej Objednávke dochádza k uzatvoreniu Kúpnej zmluvy, ktorá môže byť ukončená iba dohodou oboch Strán.
B16: III. KÚPNA CENA, FAKTURÁCIA, PLATOBNÉ PODMIENKY
B17: 3.1 Kupujúci je povinný zaplatiť Predávajúcemu za dodaný Tovar Kúpnu cenu určenú podľa platného Cenníka, alebo inak dohodnutú plus DPH. Pre vylúčenie všetkých pochybností sa dohodlo, že kúpna cena je uvedená v Cenníku bez DPH.
B18: 3.2 Predávajúci je oprávnený Cenník kedykoľvek jednostranne meniť, prípadná zmena Cenníku sa však nevzťahuje na Tovar objednaný na základe Objednávok doručených Predávajúcemu pred dňom takej zmeny. Aktualizovaný Cenník obsahujúci dátum účinnosti bude zverejnený na internetových stránkach Predávajúceho alebo zaslaný Kupujúcemu formou emailovej správy.
B19: 3.3 Ak nebude medzi Predávajúcim a Kupujúcim dohodnuté inak, Kúpna cena nezahrňuje náklady na balné, prepravu, manipuláciu, inštaláciu a uvedenie Tovaru do prevádzky, ani náklady na likvidáciu a recykláciu obalov („Ďalšie náklady“). Výška ďalších nákladov bude uvedená v Cenníku a bude vždy pripočítaná ku Kúpnej cene.
B20: 3.4 Kúpna cena je splatná do siedmych (7) dní od dňa vystavenia daňového dokladu (zálohovej faktúry), ktorý bude spĺňať náležitosti vyžadované zákonom 222/2004 Z.z., v platnom znení. Príslušná čiastka bude Kupujúcim uhradená bezhotovostne na účet Predávajúceho uvedený v príslušnej faktúre alebo inak Kupujúcemu oznámený. Zaplatením Kúpnej ceny sa rozumie deň pripísania celej čiastky na príslušný účet Predávajúceho.
B21: 3.5 V prípade omeškania Kupujúceho s úhradou akejkoľvek faktúry má Predávajúci nárok požadovať úhradu zmluvnej pokuty vo výške 0,05 % z dlžnej čiastky za každý deň omeškania.
B22: IV. DODANIE TOVARU
B23: 4.1 K dodaniu Tovaru môže dôjsť až po úplnom zaplatení Kúpnej ceny. Dodacia doba je (30) dní od zaplatenia Kúpnej ceny, pokiaľ predávajúci neurčil inak. Predávajúci je oprávnený pozastaviť lehotu pre dodanie Tovaru po dobu, kým bude Kupujúci v omeškaní s úhradou akejkoľvek dlžnej čiastky vyplývajúcej z Rámcové či Kúpnej zmluvy. Takéto omeškanie s dodaním Tovaru nebude považované za porušenie Kúpnej alebo Rámcovej zmluvy.
B24: 4.2 Predávajúci je povinný dodať Kupujúcemu Tovar formou jeho odoslania na adresu Kupujúceho uvedenú v Kúpnej zmluve, prípadne na inú adresu písomne oznámenú Predávajúcemu („Zásielka“). Povinnosť Predávajúceho sa považuje za splnenú a Tovar je tak dodaný Kupujúcemu okamžikom odovzdania Zásielky prvému dopravcovi k preprave. Zásielka bude vždy jasne a dostatočne označená ako zásielka pre Kupujúceho a účinky dodania Tovaru tak nastanú odovzdaním Zásielky dopravcovi. V súlade s ObchZ prechádza nebezpečenstvo škody na Tovare na Kupujúceho v okamžiku, keď je Zásielka odovzdaná prvému dopravcovi k preprave do miesta dodania.
B25: 4.3 Pokiaľ není v týchto VOP alebo medzi Predávajúcim a Kupujúcim dohodnuté inak, na dodanie tovaru sa uplatnia podmienky CIP podľa INCOTERMS 2010. Miesto určenia a dodania bude dohodnuté v konkrétnom prípade medzi Predávajúcim a Kupujúcim.
B26: V. NADOBUDNUTIE VLASTNÍCKÉHO PRÁVA K TOVARU
B27: 5.1 Kupujúci nadobúda vlastnícke právo k Tovaru okamžikom, keď je mu odovzdaný a súčasne zaplatil celú Kúpnu cenu.
B29: VI. ZÁRUKA
B30: 6.1 Predávajúci poskytuje Kupujúcemu záruku za akosť Tovaru v dĺžke trvania päť (5) rokov od dňa prevzatia Tovaru Kupujúcim („Záruční doba“). Zárukou za akosť sa Predávajúci zaväzuje, že Tovar zakúpený Kupujúcim bude po stanovenú Záručnú dobu spôsobilý pre použitie k dohodnutému účelu.
B31: 6.2 Záruka sa nevzťahuje na vady spôsobené alebo vzniknuté najmä v dôsledku:
B32: (a) nesprávneho skladovania Tovaru pred inštaláciou a uvedením do prevádzky;
B33: (b) nevhodnej, chybne navrhnutej alebo chybne vykonanej inštalácie Tovaru alebo nesprávneho použitia Tovaru;
B34: (c) opotrebovanie Tovaru spojené s prirodzeným behom životnosti Tovaru a bežným použitím (napr. varistorov zvodičov prepätia);
B35: (d) nadmerného použitia Tovaru, tj. použitím v rozpore s odporučením alebo inštrukciami Predávajúceho (napr. prekročením počtu deklarovaných pracovných cyklov);
B36: (e) akékoľvek zmeny alebo úpravy Tovaru, ktoré boli vykonané Kupujúcim alebo akoukoľvek treťou osobou s výnimkou osoby, ktorá bola určená alebo schválená Predávajúcim;
B37: (f) vonkajších vplyvov mimo kontrolu Predávajúceho
B38: (g) vyššia moci, za ktorú sa považuje najmä záplava, povodeň, požiar, zásah bleskom, zemetrasenie, štrajk alebo občianske nepokoje.
B39: 6.3 Výnimky zo Záruky sú podrobne uvedené v reklamačnom poriadku, ktorý je dostupný na internetových stránkach Predávajúceho („Reklamačný poriadok“). V prípade rozporu medzi ustanoveniami Reklamačného poriadku a týchto VOP majú prednosť ustanovenia Reklamačného poriadku.
B40: 6.4 Prípadné vrátenie Tovaru Kupujúcim zpäť Predávajúcemu podlieha súhlasu Predávajúceho. Vrátenie tovaru je možné len v prípade, ak je tovar kompletný a nepoškodený vrátane obalu, a to maximálne do jedného (1) roku od jeho dodania. Cena, za ktorú bude Predávajúcim taký tovar kúpený, bude určená Predávajúcim, a to na základe kontroly prevedenej Predávajúcim. Všetky náklady spojené so zpätným predajom (poštovné, balné a pod.) Predávajúcemu nesie Kupujúci. Na výzvu Predávajúceho je Kupujúci povinný zaplatiť Predávajúcemu manipulačný poplatok za účelom uhradenia ďalších dodatočných nákladov vzniknutých Predávajúcemu v súvislosti s vrátením tovaru.
B41: VII. REKLAMÁCIA A EURÓPSKA ZÁRUKA
B42: 7.1 Kupujúci je oprávnený uplatniť nárok zo zodpovednosti za vadu Tovaru, ktorá vznikla v priebehu Záručnej doby („Reklamácia“) v ktorejkoľvek pobočke Predávajúceho, uvedenej v zozname predloženom Kupujúcemu pri nákupu Tovaru alebo dostupnom na internetových stránkach Predávajúceho („Zoznam“). Kupujúci je za podmienok uvedených v Reklamačnom poriadku oprávnený uplatniť Reklamáciu aj mimo územia štátu, v ktorom bol Tovar zakúpený.
B43: 7.2 Práva z vadného plnenia týkajúceho sa dodaného množstva tovaru je Kupujúci oprávnený uplatniť najneskôr do štrnásť (14) dní od dňa dodania Tovaru.
B44: 7.3 Kupujúci je povinný pri prevzatí Tovar podľa možností skontrolovať a prípadné vady oznámiť prostredníctvom protokolu prepravcu. Práva z vadného plnenia týkajúceho sa vád, ktoré Kupujúci mohol odhaliť pri prevzatí Tovaru, zanikajú po prevzatí Tovaru a Reklamácia v takomto prípade nebude uznaná. Predávajúci je ale oprávnený, ale nie povinný, uznať reklamáciu aj v takomto prípade.
B45: 7.4 Kupujúci berie na vedomie, že výnimky zo Záruky, podmienky pre uplatnenie nároku na Reklamáciu a okolnosti, za ktorých nebude Reklamácia uznaná ako oprávnená, sa budú riadiť Reklamačným poriadkom, s jeho obsahom sa pred uzatvorením Kúpnej zmluvy zoznámil.
B47: VIII. SPRACOVANIE OSOBNÝCH ÚDAJOV
B48: 8.1 Osobné údaje Kupujúceho v zmyslu §3 zákona č. 363/2005 Z.z., o ochrane osobných údajov, v platnom znení („SOÚ“), ktoré Kupujúci poskytol Predávajúcemu v súvislosti s uzatvorením a plnením Rámcovej zmluvy alebo Kúpnej zmluvy, alebo ktoré Predávajúci získal iným zákonným spôsobom, poprípade ktoré vytvoril spracovaním údajov takto získaných („Osobné údaje“), budú Predávajúcim alebo ním povereným spracovateľom spracovávané za účelom využívania týchto Osobných údajov v súvislosti s predmetom podnikania Predávajúceho, tj. k činnostiam priamo alebo nepriamo súvisiacimi s jeho obchodnou činnosťou vrátane ponúkania obchodu a starostlivosti o zákazníka, a to ako automatizovane (prostriedkami výpočtovej techniky), tak manuálne. Predávajúci bude Osobné údaje spracovávať po dobu trvania zmluvného vzťahu založeného Rámcovou zmluvou alebo Kúpnou zmluvou a ďalej po dobu vyžadovanú všeobecne záväznými právnymi predpismi. Kupujúci prehlasuje, že si je vedomý rozsahu, spôsobu, účelu a dĺžky spracovávania Osobných údajov, ako sú vymedzené v Rámcovej zmluve, Kúpnej zmluve a týchto VOP a svojím podpisom na Rámcovej alebo Kúpnej zmluve udeľuje Predávajúcemu výslovný súhlas s takým spracovávaním Osobných údajov. Kupujúci ďalej súhlasí s tým, aby Osobné údaje boli Predávajúcim a každým ďalším správcom spracovávané, rozumie sa aj navzájom medzi nimi alebo tretími osobami odovzdávané (a to aj do tretích krajín), za účelom plnenia Rámcovej zmluvy alebo Kúpnej zmluvy, skvalitnenie starostlivosti o Kupujúceho, vykonávanie marketingových činností alebo informovanie ostatných správcov o bonite a dôveryhodnosti Kupujúceho.
B50: IX. ZASIELANIE OBCHODNÝCH ZDELENÍ
B51: 9.1 Kupujúci berie na vedomie a podpisom Rámcovej alebo Kúpnej Zmluvy udeľuje Predávajúcemu výslovný súhlas k tomu, aby Predávajúci elektronickými prostriedkami na adresy, ktoré Kupujúci v súvislosti s Rámcovou alebo Kúpnou zmluvou Predávajúcemu uviedol, zasielal Kupujúcemu obchodné zdelenie v zmysle §3 odst.6 zákona č. 147/2001 Z.z., o reklame a o zmene a doplnení niektorých zákonov, v platnom znení.
B53: X. DORUČOVANIE
B54: 10.1 Pokiaľ nie je stanovené inak, všetky oznámenia, zdelenia alebo iná komunikácia uskutočnená medzi Stranami musí byť písomná. Strany sú povinné doručovať si navzájom písomnosti na adresy uvedené v Rámcovej alebo Kúpnej zmluve, alebo inak oznámené Stranami, a to: (a) osobným doručením s potvrdením prevzatia; (b) doporučeným listom; (c) prostredníctvom kuriéra a potvrdením prijatia; alebo (d) e-mailom. Úkony, ktoré majú vplyv na vznik, zmenu alebo zánik Rámcovej alebo Kúpnej zmluvy musia byť doručované výhradne písomne na adresu sídla alebo adresu uvedenú v Rámcovej zmluve. Akékoľvek oznámenie bude považované za riadne doručené príslušnej Strane okamihom jeho doručenia do sféry adresáta. K doručeniu v súlade s ustanovením Obchodného zákonníka dôjde aj v prípade, že Strana ktorá je adresátom, vedome zabráni doručeniu. Predpokladá sa, že zásielka odoslaná prostredníctvom prevádzkovateľa poštovej služby prišla tretí pracovný deň od jej odoslania.
B55: 10.2 Strany sa zaväzujú, bezodkladne sa písomne informovať o zmenách akýchkoľvek údajov uvedených v Rámcovej alebo Kúpnej zmluve. Pokiaľ niektorá zo strán poruší túto povinnosť, bude sa považovať všetka korešpondencia odoslaná na poslednú známu adresu takej Strany za doručenú aj napriek tomu, že se tu adresát už nezdržuje a nemal tak možnosť sa s obsahom zásielky zoznámiť.
B57: XI. ZÁVĚREČNÉ USTANOVENIA
B58: 11.1 Rámcová zmluva a Kúpna zmluva (vrátane vzťahov z nich vyplývajúcich) sa riadi právom Českej republiky.
B59: 11.2 Strany sa zaväzujú riešiť všetky vzájomné spory súvisiace s Rámcovou alebo Kúpnou zmluvou zmierom. V prípade, že nebude dosiahnutý zmier, do pätnástich (15) dní od dňa, kedy ktorákoľvek zo Strán informovala druhú Stranu o vzniku sporu a požiadala o zmier takého sporu, budú tieto spory alebo nezrovnalosti s konečnou platnosťou riešené Rozhodcovským súdom Slovenskej obchodnej a priemyselnej komory v Bratislave. Všetky spory, ktoré vzniknú z Rámcovej alebo Kúpnej zmluve, vrátane sporov o ich platnosť, výklad alebo zrušenie budú riešené pred Rozhodcovským súdom Slovenskej obchodnej a priemyselnej Komory v Bratislave podľa jeho základných vnútorných právnych predpisov. Strany sa podrobia rozhodnutiu tohto súdu. Jeho rozhodnutie bude pre strany záväzné.
B60: 11.3 Tieto VOP sú platné a účinné od 1. 1. 2015.

Sheet Reklamačný poriadok
B2: ______________________________________________________
B3: REKLAMAČNÝ PORIADOK
B4: ______________________________________________________
B7: I. ÚVODNÉ USTANOVENIE
B8: 1.1 Tento reklamačný poriadok („Reklamačný poriadok“) spoločnosti NOARK Electric Europe s.r.o., so sídlom Praha 9, Horní Počernice, Sezemická 2757/2, PSČ: 193 00, zapísanej v obchodnom registri vedenom Mestským súdom v Prahe, oddiel C, vložka 181277 („Predávajúci“), vymedzuje vzájomné práva a povinnosti vyplývajúce z práv z vadného plnenia u tovaru dodávaného na trh Predávajúcim („Zboží“) a osobou, ktorá tento Tovar za účelom jeho použitia zakúpila („Kupujúci“). Pokiaľ nie je uvedené inak, majú výrazy tu použite so začiatočným veľkým písmenom význam uvedený vo Všeobecných obchodných podmienkach Predávajúceho („VOP“), ktoré sú dostupné na internetových stránkach Predávajúceho.
B10: II. ZÁRUKA
B11: 2.1 Predávajúci poskytne Kupujúcemu záruku za akosť Tovaru v dĺžke trvania piatich (5) rokov od dňa prevzatia Tovaru Kupujúcim (ďalej len „Záručná doba“). Zárukou za akosť sa Predávajúci zaväzuje, že Tovar zakúpený Kupujúcim bude po stanovenú Záručnú dobu spôsobilý pre použitie na dohodnutý účel.
B12: 2.2 Záruka sa nevzťahuje na vady, ktoré boli spôsobené, alebo vznikli v dôsledku :
B13: (a) nesprávneho skladovania Tovaru pred inštaláciou a uvedením do prevádzky, tj, skladovaním na mieste a za podmienok, ktoré sú v rozpore v príslušnou výrobkovou normou a prehlásením o zhode (pokiaľ neuvedie Predávajúci písomne niečo iné), podmienkami uvedenými vo VOP, príručke pre užívateľov, návodu na použitie, katalógu alebo v inom dokumente, ktorý pre tieto účely Predávajúci vydal alebo označil;
B14: (b) nevhodné, chybne navrhnuté alebo chybne vykonané inštalácie Tovaru, za ktorú sa považuje najmä inštalácia vykonaná v rozpore s podmienkami a požiadavkami stanovenými v ktoromkoľvek z dokumentov uvedeným pod bodom a) vyššie;
B15: (c) nesprávne použitie Tovaru, za ktoré sa považuje najmä použitie Tovaru v rozpore s ktorýmkoľvek z dokumentov uvedeným pod bodom a) vyššie;
B16: (d) použitie Tovaru za iným účelom, než aký je stanovený v ktoromkoľvek z dokumentov uvedeným pod bodom a) vyššie;
B17: (e) opotrebovanie Tovaru spojené s prirodzeným behom životnosti Tovaru a bežným použitím (napr. varistorov zvodičov prepätia);
B18: (f) nadmerného použitia Tovaru, tj. použitím v rozpore s odporučením alebo inštrukciami Predávajúceho (napr. prekročením počtu deklarovaných pracovných cyklov);
B19: (g) použitia Tovaru v rozpore s akoukoľvek prevádzkovou alebo montážnou podmienkou stanovenou vo výrobkovej norme alebo ktoromkoľvek inom dokumente uvedenom pod bodom a) vyššie;
B20: (h) použitia Tovaru v prostredí alebo na mieste, kde dochádza k pôsobeniu vonkajších vplyvov, a ktoré neodpovedajú podmienkam stanoveným alebo doporučeným Predávajúcim;
B21: (i) nesprávnej údržby Tovaru, za ktorú sa považuje údržba vykonávaná v rozpore s ktorýmkoľvek z dokumentov uvedeným pod bodom a) vyššie;
B22: (j) pripojenia Tovaru k inému Tovaru alebo akémukoľvek inému výrobku alebo zariadeniu inak, ako je doporučené alebo stanovené Predávajúcim v ktoromkoľvek z dokumentov uvedeným pod bodom a) vyššie;
B23: (k) akejkoľvek zmeny alebo úpravy Tovaru, ktoré boli vykonané Kupujúcim alebo akoukoľvek tretou osobou s výnimkou osoby určenej alebo schválenej Predávajúcim;
B24: (l) vonkajších vplyvov mimo kontrolu Predávajúceho, za ktoré sa považuje najmä pôsobenie slnečného alebo iného žiarenia, elektromagnetické pól, vniknutie tekutiny, vniknutie prachu, peľu alebo akéhokoľvek predmetu, prepätí v sieti, kolísanie siete, prepätí alebo skrat na vstupoch alebo výstupoch, napätie vzniknuté pri elektrostatickom výboji (vrátane blesku), chybné napájacie alebo vstupné napätie; a
B25: (m) vyššej moci, za ktorú sa považuje najmä záplava, povodeň, požiar, zásah blesku, zemetrasenie, štrajk alebo občianske nepokoje.
B26: 2.3 Za rozpor s kúpnou zmluvou sa nepovažuje a reklamačný nárok nebude uznaný v prípade, keď Tovar nemá vadu, avšak neplní funkcie predpokladané alebo očakávané Kupujúcim; alebo tieto funkcie plniť nemôže, pretože jeho inštalácia bola navrhnutá alebo vykonaná takým spôsobom, že Tovar tieto funkcie ani objektívne plniť nemohol. Za vadu sa tiež nepovažuje akákoľvek odlišnosť vo veľkosti, farbe alebo tvaru Tovaru v porovnaní s jeho vyobrazením uvedeným v katalógu alebo inom dokumente Predávajúceho.
B28: III. REKLAMACE A EVROPSKÁ ZÁRUKA
B29: 3.1 Kupujúci je oprávnený uplatniť svoj nárok zo zodpovednosti za vadu Tovaru vzniknutú v priebehu Záručnej doby (ďalej len „Reklamácia“) v akejkoľvek prevádzke uvedenej na zozname predloženom Kupujúcemu pri nákupe Tovaru alebo dostupnom na internetových stránkach Predávajúceho (ďalej len „Zoznam“).
B30: 3.2 Kupujúci je za podmienok uvedených v tomto Reklamačnom poriadku oprávnený uplatniť Reklamáciu aj mimo územia štátu, v ktorom bol Tovar zakúpený, ak je taký štát (prevádzka) uvedená v Zozname.
B31: 3.3 Podmienkou pre uplatnenie nároku na Reklamáciu je:
B32: (a) označenie osoby, ktorý Tovar zakúpila a ktorá reklamáciu uplatňuje;
B33: (b) označenie Tovaru, ktorý je predmetom Reklamácie (typ, kód a ďalšie identifikačné údaje o Tovare);
B34: (c) predloženie originálu dokladu o zakúpení Tovaru;
B35: (d) vyplnenie reklamačného listu v jazyku štátu, v ktorom sa Reklamácia uplatňuje;
B36: (e) podrobný popis vady Tovaru a spôsob, akým sa vada prejavuje;
B37: (f) podrobný popis spôsobu zapojenia a použitia Tovaru;
B38: (g) preferovaný spôsob vybavenia Reklamácie; a
B39: (h) uplatnenie vady výhradne v autorizovanom servise, uvedenom v Zozname.
B40: 3.4 Reklamácia bude vybavená bez zbytočného odkladu, a to nasledujúcim spôsobom:
B41: (a) pokiaľ ide o vadu odstrániteľnú, má Kupujúci nárok požadovať (i) odstránenie vady opravou Tovaru, (ii) dodanie chýbajúceho Tovaru; alebo (iii) primeranú zľavu z kúpnej ceny; a
B42: (b) pokiaľ ide o vadu neodstrániteľnú, má Kupujúci nárok požadovať (i) výmenu Tovaru; (ii) zľavu z Kúpnej ceny; alebo môže od Kúpnej zmluvy odstúpiť.
B43: 3.5 Kupujúci berie na vedomie a súhlasí, že v prípade, že Reklamáciu uplatní (i) v inom štáte ako v ktorom Tovar zakúpil; či (ii) u iného subjektu, než u ktorého Tovar zakúpil (napr. pokiaľ Kupujúci Tovar zakúpil u tretej osoby a Reklamáciu uplatňuje priamo u Predávajúceho), bude odlišne od článku 3.4 tohto Reklamačného poriadku Reklamácia vybavená formou opravy či výmeny Tovaru. Pre vylúčenie akýchkoľvek pochybností o význame tohto dojednania sa výslovne stanovuje, že v prípadoch podľa prvej vety tohto článku nejde Reklamáciu vybaviť formou zľavy a nejde od kúpnej zmluvy, na základe ktorej bol Tovar zakúpený, odstúpiť.
B44: 3.6 Voľba nároku na spôsob odstránenia vady Tovaru sa prisudzuje Kupujúcemu. Tento nárok je obmedzený v prípade Reklamácie podľa článku 3.5 tohto Reklamačného poriadku.
B46: IV. PLATNOSŤ REKLAMAČNÉHO PORIADKU
B47: 4.1 Tento Reklamačný poriadok je platný od 1. 1. 2015.

Sheet Návod
B2: ______________________________________________________
B3: NÁVOD
B4: ______________________________________________________
B7: 1. Vyberte list "Rabatové podmienky" a zadajte príslušné koeficienty zliav. Zľavy je možné zadávať pre základné skupiny alebo samostatne pre jednotlivé podskupiny výrobkov.
B8: 2. Rabatové podmienky musia byť zadané pred tvorbou Cenovej ponuky alebo Objednávky. Následné zmeny sa nepremietnu do existujúcich Cenových ponúk a Objednávok.
B9: 3. Pre pridanie položky do Objednávky vyberte akúkoľvek bunku v príslušnom riadku na liste "Cenník NOARK" a stlačte tlačítko "Pridať do objednávky".
B10: 4. Pre pridanie položky do Cenovej ponuky vyberte akúkoľvek bunku v príslušnom riadku na liste "Ceník NOARK" a stlačte tlačítko "Pridať do cenovej ponuky".
B11: 5. Po stlačení tlačítka podľa bodu 3. alebo 4. sa otvorí okno, do ktorého zadajte požadovaný počet kusov výrobkov a stlačte Enter.
B12: 6. Použitím kombinácie tlačidiel Shift a Alt môžete vybrať viac výrobkov naraz. Okná pre zadanie počtu kusov sa budú otvárať postupne.
B13: 7. Vyplňte kontaktné údaje v hlavičke listu "Objednávka" alebo "Cenová ponuka"
B14: 8. Ak chcete zmazať ľubovoľný riadok v Cenovej ponuke alebo Objednávke, označte ľubovoľnú bunku daného riadku a stlačte "Zmazať riadok".
B15: 9. Vymazať celý zoznam položiek z Objednávky alebo Cenovej ponuky je možné stlačením tlačítka "Zmazať všetko".
B16: 10. Objednávku alebo Cenovú ponuku môžete uložiť použitím štandardných prostriedkov Excel.
B17: 11. Objednávku alebo Cenovú ponuku môžete exportovať do pdf stlačením tlačidla "Uložit ako PDF".
B18: 12. Tlač Objednávky alebo Cenovej ponuky je možná použitím štandardných prostriedkov Excel.
